{"text_format":"1","workbook":"xlsx","n_sheets":14,"sheets":["Introduction","Instructions","FAQs","Guidance for AGYW","Programme Management","Programme Implementation","ALL - Regardless of Incidence","MODERATE Incidence","HIGH Incidence","Programme Outcomes ","Summary of scores","Next steps ","Bibliography","Acronyms"],"not_rendered":{"charts":12,"images":1,"macros":1,"external_links":0,"defined_names":35,"comments":0,"pivot_tables":0},"unopened":[],"bounds":{"document_bytes":16777216,"sheet_cells":100000,"rows_first":2000,"rows_last":500,"rows_between":2000,"halvings":0,"cell_chars":16384,"cell_head_chars":4096},"cells_cut":0,"cells_raw":0,"read":"whole","date_system":"1900"}

{"sheet":"Introduction","index":0,"n_rows":2,"n_cols":3,"rows_kept":2,"cut":false,"hidden":false,"merged":[[1,2,1,22]]}
[]
[null,null,"What are the HIV Prevention Self-Assessment Tools (PSAT)?"]

{"sheet":"Instructions","index":1,"n_rows":57,"n_cols":19,"rows_kept":57,"cut":false,"hidden":false,"merged":[[2,2,2,17]]}
[]
[]
[null,null,"How to complete the Prevention Self Assessment Tool (PSAT)"]
[]
[]
[]
[]
[]
[]
[]
[]
[]
[]
[]
[]
[]
[]
[]
[]
[]
[]
[]
[]
[]
[]
[]
[]
[]
[]
[]
[]
[]
[]
[]
[]
[]
[]
[]
[]
[]
[]
[]
[]
[]
[]
[]
[]
[]
[]
[]
[]
[]
[]
[]
[]
[]
[null,null,null,null,null,null,null,null,null,null,null,null,null,null,null,null,null,null,"I"]

{"sheet":"FAQs","index":2,"n_rows":2,"n_cols":3,"rows_kept":2,"cut":false,"hidden":false,"merged":[[1,2,1,22]]}
[]
[null,null,"Frequently Asked Questions"]

{"sheet":"Guidance for AGYW","index":3,"n_rows":2,"n_cols":3,"rows_kept":2,"cut":false,"hidden":false,"merged":[[1,2,1,22]]}
[]
[null,null,"Combination prevention for adolescent girls, young women and their male partners in high-prevalence locations"]

{"sheet":"Programme Management","index":4,"n_rows":90,"n_cols":16,"rows_kept":90,"cut":false,"hidden":false,"merged":[[1,2,1,9],[3,3,3,4],[4,2,4,10],[5,3,5,4],[5,5,5,8],[5,9,17,9],[18,3,18,4],[19,3,19,4],[19,5,19,8],[19,9,29,9],[30,3,30,4],[30,5,30,8],[30,9,37,9],[39,9,46,9],[64,9,73,9],[74,9,74,10],[75,3,75,4],[75,9,77,9],[80,9,81,9],[82,3,82,4],[82,5,82,8],[82,9,84,9],[47,9,50,9],[52,3,52,4],[52,6,52,8],[52,9,63,9],[64,3,64,4],[64,6,64,8],[75,2,77,2],[80,2,81,2],[82,2,84,2],[5,2,17,2],[19,2,29,2],[30,2,38,2],[39,2,46,2],[47,2,50,2],[52,2,63,2],[64,2,73,2]]}
[]
[null,null,"Programme Management"]
[]
[null,null,"Element","Criteria",null,"N/A","Absent","Present but not optimal","Present and working well","Average for element","Comments (if applicable)","Absent","Present","Optimal","Average","Sustainability Single Figure"]
[null,null,"Leadership and Coordination"]
[null,null,"National Strategy and Strategic Plan","There is a national strategy/policy and strategic plan in place for HIV Prevention amongst AGYW or they are well included in other HIV prevention plans and:",null,null,null,null,null,{"$f":"IFERROR(O6,\"-\")","v":"-"},null,null,null,null,{"$f":"IFERROR(ROUND(AVERAGEIF(L7:N18,\"<>0\",L7:N18),0),\"-\")","v":"-"}]
[null,null,null,"○","AGYW have been consulted in the development of HIV prevention strategies/plans for AGYW",null,null,null,null,null,null,{"$f":"IF(ISBLANK(G7),0,1)","v":0},{"$f":"IF(ISBLANK(H7),0,3)","v":0},{"$f":"IF(ISBLANK(I7),0,5)","v":0}]
[null,null,null,"○","The goals, objectives, and targets have been clearly defined and articulated for the HIV prevention programme among AGYW (and their male partners)",null,null,null,null,null,null,0,0,0]
[null,null,null,"○","HIV prevention programmes for AGYW recognise specific vulnerabilities of AGYWs due to gender, age, location, socio-economic status and educational status amongst others",null,null,null,null,null,null,0,0,0]
[null,null,null,"○","A clear logic model or theory of change is presented in the strategy/plan to guide HIV prevention programmes for AGYW",null,null,null,null,null,null,0,0,0]
[null,null,null,"○","The strategy/plan includes a comprehensive package of interventions and activities, aligned with available evidence and current global guidance",null,null,null,null,null,null,0,0,0]
[null,null,null,"○","A comprehensive and differentiated package of interventions is defined per district/county/region/state based on epidemiological assessment of HIV incidence/prevalence as well as an understanding AGYW sub-groups in all their diversity",null,null,null,null,null,null,0,0,0]
[null,null,null,"○","Clear scale-up plans have been defined with responsibilities assigned",null,null,null,null,null,null,0,0,0]
[null,null,null,"○","A monitoring and evaluation framework is included, with core indicators and targets for HIV prevention for AGYW",null,null,null,null,null,null,0,0,0]
[null,null,null,"○","Implementation mechanisms & management/coordination systems are clearly defined at national and relevant sub-national levels for AGYW ",null,null,null,null,null,null,0,0,0]
[null,null,null,"○","Planning cycles are clearly defined and supported by rigorous impact evaluations",null,null,null,null,null,null,0,0,0]
[null,null,null,"○","Recommendations from other HIV assessments/strategies/processes linked to AGYW (e.g. stigma index, gender assessment etc.) are included in the National Strategy and Strategic Plan",null,null,null,null,null,null,0,0,0]
[null,null,null,"○","Includes or is linked to a multi-sectoral plan that meets the requirements for participation, buy in and contribution across all stakeholder groups (government, agencies, implementers, funders, AGYW) who are necessary for the success of a multi-pronged approach towards HIV prevention programmes for AGYW",null,null,null,null,null,null,0,0,0]
[null,null,"National and sub-national plans","Evidence-based intervention packages for HIV Prevention amongst AGYW based on incidence of HIV infection of each district/county/region/state have been included in national and provincial annual performance plans ",null,null,null,null,null,{"$f":"IFERROR(O19,\"-\")","v":"-"},null,0,0,0,{"$f":"IFERROR(IF(ISBLANK(G19),ROUND(AVERAGEIF(L19:N19,\"<>0\",L19:N19),0),L19),\"-\")","v":"-"}]
[null,null,"National Technical working group (TWG) on HIV prevention for AGYW","A technical working group (TWG) has been established at national level and sub-national consultation/advisory committees have been established at sub-national level:",null,null,null,null,null,"-",null,null,null,null,{"$f":"IFERROR(ROUND(AVERAGEIF(L21:N30,\"<>0\",L21:N30),0),\"-\")","v":"-"}]
[null,null,null,"○","The National TWG and/or advisory committees have Terms of Reference (ToR) or a defined Scope of Work which also describe the link to other HIV processes and groups dealing with HIV prevention and youth",null,null,null,null,null,null,{"$f":"IF(ISBLANK(G21),0,1)","v":0},{"$f":"IF(ISBLANK(H21),0,3)","v":0},{"$f":"IF(ISBLANK(I21),0,5)","v":0}]
[null,null,null,"○","The Terms of Reference/Scope of Work for the national committees is appropriately prioritised and aligned with national plans, goals objectives and targets",null,null,null,null,null,null,0,0,0]
[null,null,null,"○","The National TWG and/or advisory committees meet at least quarterly",null,null,null,null,null,null,0,{"$f":"IF(ISBLANK(I23),0,3)","v":0},0]
[null,null,null,"○","The National TWG and/or advisory committees are complete and include Civil Society Organisations (CSOs), implementing partners, members of AGYW networks, bilateral and government representatives",null,null,null,null,null,null,0,0,0]
[null,null,null,"○","They have internal and external communication mechanisms in place ",null,null,null,null,null,null,0,0,0]
[null,null,null,"○","Representatives of AGYW groups are included in National TWG and/or advisory committees",null,null,null,null,null,null,0,0,0]
[null,null,null,"○","AGYW are supported and their capacity is strengthened to ensure their participation on an equal basis with other members",null,null,null,null,null,null,0,0,0]
[null,null,null,"○","The technical working group utilises data from monitoring activities for inform decision-making",null,null,null,null,null,null,0,0,0]
[null,null,null,"○","Priorities have been well defined and majority of action items are routinely achieved",null,null,null,null,null,null,0,0,0]
[null,null,null,"○","Sub national TWGs and/or advisory committees are established and active",null,null,null,null,null,null,0,0,0]
[null,null,"Accountability","Leading department/ministry responsible for success of HIV prevention programmes for AGYW has been identified and has strong leadership/authority:",null,null,null,null,null,{"$f":"IFERROR(O31,\"-\")","v":"-"},null,null,null,null,{"$f":"IFERROR(ROUND(AVERAGEIF(L32:N39,\"<>0\",L32:N39),0),\"-\")","v":"-"}]
[null,null,null,"○","All HIV prevention programmes for AGYW in country routinely report data to government at sub-national and national level using common indicators that are aligned to national strategies and global benchmarks for HIV prevention",null,null,null,null,null,null,{"$f":"IF(ISBLANK(G32),0,1)","v":0},{"$f":"IF(ISBLANK(H32),0,3)","v":0},{"$f":"IF(ISBLANK(I32),0,5)","v":0}]
[null,null,null,"○","When reporting, data is anonymised and secured to protect the identity of AGYW",null,null,null,null,null,null,0,0,0]
[null,null,null,"○","There are routine reviews using AGYW monitoring data",null,null,null,null,null,null,0,0,0]
[null,null,null,"○","A designated government representative from the leading department/ministry is responsible for representing the AGYW programme at regularly convened, multi-sectoral meetings",null,null,null,null,null,null,0,0,0]
[null,null,null,"○","AGYW technical working group is involved in ensuring accountability, including through data collection",null,null,null,null,null,null,0,0,0]
[null,null,null,"○","An annual performance review and feedback loop has been set up to hold point persons accountable (could be coordinated by the technical working group)",null,null,null,null,null,null,0,0,0]
[null,null,null,"○","Active civil society lobbyists are engaged in the national dialogues, policy processes, programme planning/reviews and strategic planning processes related to HIV prevention for AGYW",null,null,null,null,null,null,0,0,0]
[null,null,null,"○","Community groups of AGYW are involved in community led monitoring according to UNAIDS guidelines, and in community led data collection",null,null,null,null,null,null,0,0,0]
[null,null,"Capacity building and technical assistance plan","○","Technical assistance plan is in place and: ",null,null,null,null,{"$f":"IFERROR(O40,\"-\")","v":"-"},null,null,null,0,{"$f":"IFERROR(ROUND(AVERAGEIF(L41:N47,\"<>0\",L41:N47),0),\"-\")","v":"-"}]
[null,null,null,"○","Has been developed based on some assessment ",null,null,null,null,null,null,{"$f":"IF(ISBLANK(G41),0,1)","v":0},{"$f":"IF(ISBLANK(H41),0,3)","v":0},0,null,{"$f":"IF(MAX(L41:N41)=0,\"\",MAX(L41:N41))","v":""}]
[null,null,null,"○","Utilises domestic and international technical experts, including peer-to-peer capacity development and technical assistance",null,null,null,null,null,null,0,0,0,null,""]
[null,null,null,"○","Has prioritized programme components and policy issues ",null,null,null,null,null,null,0,0,0,null,""]
[null,null,null,"○","Facilitates the establishment and strengthening of implementers networks ",null,null,null,null,null,null,0,0,0,null,""]
[null,null,null,"○","Identifies gaps and develops consolidated requests for assistance where in-country expertise is lacking ",null,null,null,null,null,null,0,0,0,null,""]
[null,null,null,"○","Facilitates the capacity development of AGYW community to take ownership of the AGYW programmes ",null,null,null,null,null,null,0,0,0,null,""]
[null,null,null,"○","Includes internal technical assistance",null,null,null,null,null,null,0,0,0,null,""]
[null,null,"Sustainability plan and transition roadmap","○","A complete sustainability plan  and transition roadmap, outlining countries transition from donor-supported interventions to domestically-supported interventions, is in place, and it considers all resources including: ",null,null,null,null,{"$f":"IFERROR(O48,\"-\")","v":"-"},null,null,null,null,{"$f":"IFERROR(ROUND(AVERAGEIF(L49:N51,\"<>0\",L49:N51),0),\"-\")","v":"-"}]
[null,null,null,"○","Financial resources",null,null,null,null,null,null,{"$f":"IF(ISBLANK(G49),0,1)","v":0},{"$f":"IF(ISBLANK(H49),0,3)","v":0},{"$f":"IF(ISBLANK(I49),0,5)","v":0},null,{"$f":"IF(MAX(L49:N49)=0,\"\",MAX(L49:N49))","v":""}]
[null,null,null,"○","Human resources, and ",null,null,null,null,null,null,0,0,0,null,""]
[null,null,null,"○","Infrastructure",null,null,null,null,null,null,0,0,0,null,""]
[null,null,"Strategy, Policy, and Regulation"]
[null,null,"Policies and Laws","Policies actively promote the successful functioning of the HIV prevention programme for AGYW: ",null,null,null,null,null,{"$f":"IFERROR(O53,\"-\")","v":"-"},null,null,null,null,{"$f":"IFERROR(ROUND(AVERAGEIF(L54:N64,\"<>0\",L54:N64),0),\"-\")","v":"-"}]
[null,null,null,"○","Fiscal and administrative support to advance implementation of the relevant policy instruments are consistent",null,null,null,null,null,null,{"$f":"IF(ISBLANK(G54),0,1)","v":0},{"$f":"IF(ISBLANK(H54),0,3)","v":0},{"$f":"IF(ISBLANK(I54),0,5)","v":0}]
[null,null,null,"○","Policies actively promote access of AGYW to services and considers financial barriers",null,null,null,null,null,null,0,0,0]
[null,null,null,"○","Policy and laws on youth-friendly services for adolescents, that address vulnerabilities of age and allow for confidentiality and consent amongst adolescents, have been adopted",null,null,null,null,null,null,0,0,0]
[null,null,null,"○","Child marriage is illegal ",null,null,null,null,null,null,0,0,0]
[null,null,null,"○","Age of consent and/or parental consent does not present barriers in the implementation of services for AGYW",null,null,null,null,null,null,0,0,0]
[null,null,null,"○","Policies against domestic violence or gender-based violence have been adopted",null,null,null,null,null,null,0,0,0]
[null,null,null,"○","Policies to guarantee universal access to primary and secondary education have been adopted",null,null,null,null,null,null,0,0,0]
[null,null,null,"○","Comprehensive sexuality education has been adopted with a national curriculum developed",null,null,null,null,null,null,0,0,0]
[null,null,null,"○","Policies to reintegrate pregnant teenagers back into school have been adopted",null,null,null,null,null,null,0,0,0]
[null,null,null,"○","Policies to address/reduce spousal separation have been adopted",null,null,null,null,null,null,0,0,0]
[null,null,null,"○","Laws that discriminate against AGYW from Key Population groups are removed and laws protecting against discrimination on the basis of age, sex, gender identity, sexual orientation, marital status exist",null,null,null,null,null,null,0,0,0]
[null,null,"Guidelines","The following programme standards or national guidelines exist and clearly articulate the steps for successful implementation HIV prevention programme for AGYW, in alignment with evidence-based practice:",null,null,null,null,null,{"$f":"IFERROR(O65,\"-\")","v":"-"},null,null,null,null,{"$f":"IFERROR(ROUND(AVERAGEIF(L66:N74,\"<>0\",L66:N73),0),\"-\")","v":"-"}]
[null,null,null,"○","National guidelines for each of the biomedical, behavioural and structural interventions and services exist and address specific needs of AGYW; or in the absence of national guidelines, all policies & strategic documents make reference to currently available international guidance for AGYW prevention programme interventions",null,null,null,null,null,null,{"$f":"IF(ISBLANK(G66),0,1)","v":0},{"$f":"IF(ISBLANK(H66),0,3)","v":0},{"$f":"IF(ISBLANK(I66),0,5)","v":0}]
[null,null,null,"○","Guidelines were developed in consultation with AGYW",null,null,null,null,null,null,0,0,0]
[null,null,null,"○","National guidelines for HIV testing and treatment, sexually transmitted infections (STIs) and pre-exposure prophylaxis (PrEP) consider AGYW as a specific target population",null,null,null,null,null,null,0,0,0]
[null,null,null,"○","National guidelines for harm reduction as well as standard operating procedures for medically assisted therapy for people who inject drugs consider AGYW as a specific sub-population",null,null,null,null,null,null,0,0,0]
[null,null,null,"○","Sexual and reproductive health and rights (SRHR) guidelines clearly articulate linkage/integration of HIV prevention",null,null,null,null,null,null,0,0,0]
[null,null,null,"○","Comprehensive Sexuality Education (CSE) guidelines include curricula, teaching aides and training plans",null,null,null,null,null,null,0,0,0]
[null,null,null,"○","Age of consent/assent has been harmonised across all guidelines",null,null,null,null,null,null,0,0,0]
[null,null,null,"○","There are no contradictory guidelines in place",null,null,null,null,null,null,0,0,0]
[null,null,null,"○","COVID-19 infection prevention and control measures are incorporated into all HIV prevention/AGYW strategies, plans and guidelines",null,null,null,null,null,null,0,0,0]
[null,null,"Financing"]
[null,null,"Costing","The country is transparent and has a detailed understanding on the total estimated resource needs for the country - informed by costing and modelling of a standard package of HIV prevention services for AGYW",null,null,null,null,null,{"$f":"IFERROR(O76,\"-\")","v":"-"},null,null,null,null,{"$f":"IFERROR(ROUND(AVERAGEIF(L77:N78,\"<>0\",L77:N78),0),\"-\")","v":"-"}]
[null,null,null,"○","A recent national costing exercise has been conducted  to estimate the cost of the standard package of services as per guidelines and the total resource need required for implementation given coverage targets",null,null,null,null,null,null,{"$f":"IF(ISBLANK(G77),0,1)","v":0},{"$f":"IF(ISBLANK(H77),0,3)","v":0},{"$f":"IF(ISBLANK(I77),0,5)","v":0}]
[null,null,null,"○","Costs are coordinated and standardised across different sectors and partners funding and implementing  a standard package of  HIV prevention services for AGYW",null,null,null,null,null,null,0,0,0]
[null,null,"Resource mobilisation and financing","○","There is sufficient funding to address defined programming needs and domestic funding is available",null,null,null,null,{"$f":"IFERROR(O79,\"-\")","v":"-"},null,0,0,0,{"$f":"IFERROR(IF(ISBLANK(G79),ROUND(AVERAGEIF(L79:N79,\"<>0\",L79:N79),0),L79),\"-\")","v":"-"},{"$f":"IF(MAX(L79:N79)=0,\"\",MAX(L79:N79))","v":""}]
[null,null,"Domestic resourcing","○","More than 20% (low income countries) and 50% (Middle income countries) of required  resources supporting programme, human and financial, are from domestic sources",null,null,null,null,"-",null,0,0,0,"-",""]
[null,null,"Social contracting","○","Social contracting mechanisms have been well-developed and are being implemented and funded from domestic sources",null,null,null,null,"-",null,0,0,0,{"$f":"IFERROR(ROUND(AVERAGEIF(L81:N82,\"<>0\",L81:N82),0),\"-\")","v":"-"},""]
[null,null,null,"○","Funding opportunities are widely circulated to allow local implementing partners and AGYW-led organizations to access funding. CSOs are supported to access funding",null,null,null,null,null,null,0,0,0,null,""]
[null,null,"Budgeting planning","There is a well-managed intersectoral budget planning process in place for HIV prevention programmes for AGYW and an assessment of available resources is underway to try and identify gaps  and allocate budget to the AGYW programme:",null,null,null,null,null,{"$f":"IFERROR(O83,\"-\")","v":"-"},null,null,null,null,{"$f":"IFERROR(ROUND(AVERAGEIF(L84:N86,\"<>0\",L84:N86),0),\"-\")","v":"-"}]
[null,null,null,"○","Budget planning cycles for AGYW HIV prevention programming are systematically and timeously aligned with national and sub-national budgeting cycles & fiscal decision-making processes",null,null,null,null,null,null,{"$f":"IF(ISBLANK(G84),0,1)","v":0},{"$f":"IF(ISBLANK(H84),0,3)","v":0},{"$f":"IF(ISBLANK(I84),0,5)","v":0}]
[null,null,null,"○","Budget planning distinguishes funding/budget types available for a comprehensive AGYW prevention response ",null,null,null,null,null,null,0,0,0]
[null,null,null,"○","A financial gap analysis has been conducted for the national HIV prevention programme for AGYW",null,null,null,null,null,null,0,0,0,null,{"$f":"IF(MAX(L86:N86)=0,\"\",MAX(L86:N86))","v":""}]
[]
[null,null,null,null,null,null,null,null,null,null,null,null,{"$f":"COUNTIF(O6:O87,\"-\")","v":13}]
[null,null,null,null,null,null,null,null,null,null,null,null,{"$f":"COUNTIF(O6:O87,\">0\")","v":0}]
[null,null,null,null,null,null,null,null,null,null,null,"Sheet Completion",{"$f":"M89/(M88+M89)","v":0},{"$f":"1-M90","v":1}]

{"sheet":"Programme Implementation","index":5,"n_rows":237,"n_cols":16,"rows_kept":237,"cut":false,"hidden":false,"merged":[[107,9,116,9],[117,9,124,9],[125,9,132,9],[133,9,136,9],[195,9,200,9],[201,9,205,9],[206,9,211,9],[212,9,220,9],[15,9,19,9],[20,9,27,9],[29,9,32,9],[33,9,36,9],[38,9,47,9],[48,9,58,9],[59,9,63,9],[64,9,75,9],[78,9,82,9],[221,9,225,9],[226,9,229,9],[137,9,145,9],[146,9,149,9],[151,9,164,9],[166,9,169,9],[170,9,176,9],[178,9,187,9],[188,9,194,9],[137,2,145,2],[201,2,205,2],[206,2,211,2],[212,2,220,2],[221,2,225,2],[20,2,27,2],[29,2,32,2],[33,2,36,2],[38,2,47,2],[48,2,58,2],[59,2,63,2],[64,2,75,2],[93,2,101,2],[102,2,106,2],[226,2,229,2],[146,2,149,2],[151,2,164,2],[166,2,169,2],[170,2,176,2],[178,2,187,2],[188,2,194,2],[195,2,200,2],[64,3,64,4],[77,3,77,4],[78,3,78,4],[102,3,102,4],[107,3,107,4],[117,3,117,4],[125,3,125,4],[133,3,133,4],[137,3,137,4],[212,3,212,4],[221,3,221,4],[226,3,226,4],[107,2,116,2],[117,2,124,2],[125,2,132,2],[133,2,136,2],[107,5,107,8],[117,5,117,8],[125,5,125,8],[133,5,133,8],[137,5,137,8],[146,5,146,8],[201,3,201,4],[206,3,206,4],[146,3,146,4],[151,3,151,4],[166,3,166,4],[170,3,170,4],[178,3,178,4],[188,3,188,4],[195,3,195,4],[102,5,102,8],[78,5,78,8],[83,5,83,8],[78,2,82,2],[83,2,91,2],[83,3,83,4],[83,9,91,9],[93,5,93,8],[93,9,101,9],[93,3,93,4],[102,9,106,9],[33,3,33,4],[33,5,33,8],[38,3,38,4],[38,5,38,8],[1,2,1,9],[3,3,3,4],[5,2,10,2],[5,3,5,4],[5,5,5,8],[5,9,10,9],[11,5,11,8],[15,3,15,4],[20,3,20,4],[11,2,14,2],[11,3,11,4],[11,9,14,9],[15,2,19,2],[42,3,42,4],[42,5,42,8],[48,3,48,4],[48,5,48,8],[15,5,15,8],[20,5,20,8],[29,3,29,4],[29,5,29,8],[226,5,226,8],[151,5,151,8],[166,5,166,8],[170,5,170,8],[178,5,178,8],[28,2,28,4],[37,2,37,4],[59,3,59,4],[59,5,59,8],[64,5,64,8],[188,5,188,8],[195,5,195,8],[201,5,201,8],[206,5,206,8],[212,5,212,8],[221,5,221,8]]}
[]
[null,null,"Programme Implementation"]
[]
[null,null,"Element","Criteria",null,"N/A","Absent","Present but not optimal","Present and working well","Average for element","Comments (if applicable)","Absent","Present","Optimal","Average","Sustainability Single Figure"]
[null,null,"Targeting & planning"]
[null,null,"Demographic assessment & Disaggregation","National HIV Incidence data are available from appropriate sources & mathematical models (i.e. UNAIDS sub-national estimates)",null,null,null,null,null,{"$f":"IFERROR(O6,\"-\")","v":"-"},null,null,null,null,{"$f":"IFERROR(ROUND(AVERAGEIF(L7:N11,\"<>0\",L7:N11),0),\"-\")","v":"-"}]
[null,null,null,"○","Data are disaggregated by age, sex and location",null,null,null,null,null,null,{"$f":"IF(ISBLANK(G7),0,1)","v":0},{"$f":"IF(ISBLANK(H7),0,3)","v":0},{"$f":"IF(ISBLANK(I7),0,5)","v":0}]
[null,null,null,"○","Country-level incidence/transmission patterns are identified and analysed - including possible interactions between AGYW and other age groups of women/men",null,null,null,null,null,null,0,0,0]
[null,null,null,"○","The information is used to inform the need for service provision across health, education and community platforms",null,null,null,null,null,null,0,0,0]
[null,null,null,"○","This information is used for estimating funding requirements and target setting",null,null,null,null,null,null,0,0,0]
[null,null,null,"○","This information is used to determine which package of interventions is implemented in which district/county/region/state",null,null,null,null,null,null,0,0,0]
[null,null,"Needs assessment","A needs assessment for AGYW has been completed :",null,null,null,null,null,{"$f":"IFERROR(O12,\"-\")","v":"-"},null,null,null,null,{"$f":"IFERROR(ROUND(AVERAGEIF(L13:N15,\"<>0\",L13:N15),0),\"-\")","v":"-"}]
[null,null,null,"○","Adequate engagement with AGYW and AGYW-led organisations or networks on needs",null,null,null,null,null,null,{"$f":"IF(ISBLANK(G13),0,1)","v":0},{"$f":"IF(ISBLANK(H13),0,3)","v":0},{"$f":"IF(ISBLANK(I13),0,5)","v":0}]
[null,null,null,"○","Sufficient information about which services AGYW need, how they would prefer to access services, and who should provide services",null,null,null,null,null,null,0,0,0]
[null,null,null,"○","Sufficient information exists for segmentation (NEEDS BASED/PSYCHOGRAPHIC) of highest risk & \"most vulnerable\" AGYW",null,null,null,null,null,null,0,0,0]
[null,null,"Characterisation of male partners of AGYW","Programme has characterised sex partners of AGYW so that they can be targeted with highly effective HIV services: ",null,null,null,null,null,{"$f":"IFERROR(O16,\"-\")","v":"-"},null,null,null,null,{"$f":"IFERROR(ROUND(AVERAGEIF(L17:N20,\"<>0\",L17:N20),0),\"-\")","v":"-"}]
[null,null,null,"○","Comprehensive review of surveys and assessments to understand the characteristics of AGYWs male sex partners, esp. in high incidence areas ",null,null,null,null,null,null,{"$f":"IF(ISBLANK(G17),0,1)","v":0},{"$f":"IF(ISBLANK(H17),0,3)","v":0},{"$f":"IF(ISBLANK(I17),0,5)","v":0}]
[null,null,null,"○","Characteristics of male partners have been segmented to assist with designing and targeting interventions appropriately",null,null,null,null,null,null,0,0,0]
[null,null,null,"○","AGYW and their male partners were consulted during segmentation exercises",null,null,null,null,null,null,0,0,0]
[null,null,null,"○","Results are being used to inform programming",null,null,null,null,null,null,0,0,0]
[null,null,"Target setting","Targets for service coverage for AGYW and their male partners have been clearly defined and:",null,null,null,null,null,{"$f":"IFERROR(O21,\"-\")","v":"-"},null,null,null,null,{"$f":"IFERROR(ROUND(AVERAGEIF(L22:N28,\"<>0\",L22:N28),0),\"-\")","v":"-"}]
[null,null,null,"○","They are based on the size estimation, risk assessment and seroprevalence data",null,null,null,null,null,null,{"$f":"IF(ISBLANK(G22),0,1)","v":0},{"$f":"IF(ISBLANK(H22),0,3)","v":0},{"$f":"IF(ISBLANK(I22),0,5)","v":0}]
[null,null,null,"○","Outlined for AGYW in age brackets (15-19; 20-24; 25-29)",null,null,null,null,null,null,0,0,0]
[null,null,null,"○","Specified at national and sub-national level ",null,null,null,null,null,null,0,0,0]
[null,null,null,"○","Include both interim and end-point achievements",null,null,null,null,null,null,0,0,0]
[null,null,null,"○","Developed in consultation with implementers to ensure that they are realistic",null,null,null,null,null,null,0,0,0]
[null,null,null,"○","Match budgets and formal agreements with local implementers",null,null,null,null,null,null,0,0,0]
[null,null,null,"○","Include targets for male partners of AGYW, including for voluntary medical male circumcisions, condoms and HIV testing services",null,null,null,null,null,null,0,0,0]
[null,null,"Population size estimation by HIV Incidence Levels"]
[null,null,"Populations size estimate - moderate incidence","Population size estimate completed for 0.3 - <1.0 incidence range and:",null,null,null,null,null,{"$f":"IFERROR(O30,\"-\")","v":"-"},null,null,null,null,{"$f":"IFERROR(ROUND(AVERAGEIF(L31:N33,\"<>0\",L31:N33),0),\"-\")","v":"-"}]
[null,null,null,"○","It is disaggregated into age bands for AGYW (15-19; 20-24; 25-29)",null,null,null,null,null,null,{"$f":"IF(ISBLANK(G31),0,1)","v":0},{"$f":"IF(ISBLANK(H31),0,3)","v":0},{"$f":"IF(ISBLANK(I31),0,5)","v":0}]
[null,null,null,"○","It is site-based (local level as opposed to country or province)",null,null,null,null,null,null,0,0,0]
[null,null,null,"○","It is updated annually  or at completion of a bio-behavioural survey",null,null,null,null,null,null,0,0,0]
[null,null,"Population size estimate - high incidence","Population size estimate completed  for 1.0 < incidence range and:",null,null,null,null,null,{"$f":"IFERROR(O34,\"-\")","v":"-"},null,null,null,null,{"$f":"IFERROR(ROUND(AVERAGEIF(L35:N37,\"<>0\",L35:N37),0),\"-\")","v":"-"}]
[null,null,null,"○","It is disaggregated into age bands for AGYW (15-19; 20-24; 25-29)",null,null,null,null,null,null,{"$f":"IF(ISBLANK(G35),0,1)","v":0},{"$f":"IF(ISBLANK(H35),0,3)","v":0},{"$f":"IF(ISBLANK(I35),0,5)","v":0}]
[null,null,null,"○","It is site-based (local level as opposed to country or province)",null,null,null,null,null,null,0,0,0]
[null,null,null,"○","It is updated annually  or at completion of a bio-behavioural survey",null,null,null,null,null,null,0,0,0]
[null,null,"Identify the groups \"most vulnerable\" or \"most at risk\""]
[null,null,"Epidemiological assessment (sero-prevalence survey & determinants of risk)","Seroprevalence estimates are available and:",null,null,null,null,null,{"$f":"IFERROR(O39,\"-\")","v":"-"},null,null,null,null,{"$f":"IFERROR(ROUND(AVERAGEIF(L40:N48,\"<>0\",L40:N48),0),\"-\")","v":"-"}]
[null,null,null,"○","Based on recent and/or ongoing surveillance (modelled estimates updated annually or survey data updated every 3-5 years)",null,null,null,null,null,null,{"$f":"IF(ISBLANK(G40),0,1)","v":0},{"$f":"IF(ISBLANK(H40),0,3)","v":0},{"$f":"IF(ISBLANK(I40),0,5)","v":0}]
[null,null,null,"○","Can be disaggregated into age bands for AGYW (15-19; 20-24; 25-29)",null,null,null,null,null,null,0,0,0]
[null,null,null,"○","Results are accurate; statistically representative sample size (appropriately powered) and sampling method appropriate for AGYW",null,null,null,null,null,null,0,0,0]
[null,null,null,"Assessments into determinants of risk have been regularly conducted for AGYW to inform programme and:",null,null,null,null,null,null,null,0,0,0]
[null,null,null,"○","Include comprehensive review of Demographic and Health Surveys, Population HIV impact Assessment surveys and Violence Against Children Surveys",null,null,null,null,null,null,0,0,0]
[null,null,null,"○","They are specific to AGYW and take into account age- and gender-specific behaviours ",null,null,null,null,null,null,0,0,0]
[null,null,null,"○","Studies are of good quality and provide extensive information  ",null,null,null,null,null,null,0,0,0]
[null,null,null,"○","Results are accurate;  statistically representative sample size (appropriately powered) and sampling method appropriate for AGYW",null,null,null,null,null,null,0,0,0]
[null,null,null,"○","This information is also used to determine which package of interventions is implemented in which district/county/region/state and informs changes in programming/interventions as vulnerabilities change over time",null,null,null,null,null,null,0,0,0]
[null,null,"Behavioural risk factors","To understand which prevention strategies are more/less important, data are available on behavioural drivers of HIV acquisition by AGYW in the country &/or sub-national area(s) prioritised, including:",null,null,null,null,null,{"$f":"IFERROR(O49,\"-\")","v":"-"},null,null,null,null,{"$f":"IFERROR(ROUND(AVERAGEIF(L50:N59,\"<>0\",L50:N59),0),\"-\")","v":"-"}]
[null,null,null,"○","Age-disparate sex",null,null,null,null,null,null,{"$f":"IF(ISBLANK(G50),0,1)","v":0},{"$f":"IF(ISBLANK(H50),0,3)","v":0},{"$f":"IF(ISBLANK(I50),0,5)","v":0}]
[null,null,null,"○","Multiple partnerships",null,null,null,null,null,null,0,0,0]
[null,null,null,"○","Sex work",null,null,null,null,null,null,0,0,0]
[null,null,null,"○","Sexual exploitation",null,null,null,null,null,null,0,0,0]
[null,null,null,"○","Transactional sex",null,null,null,null,null,null,0,0,0]
[null,null,null,"○","Early sexual debut",null,null,null,null,null,null,0,0,0]
[null,null,null,"○","Gaps in knowledge ",null,null,null,null,null,null,0,0,0]
[null,null,null,"○","Limited risk perception",null,null,null,null,null,null,0,0,0]
[null,null,null,"○","Alcohol use",null,null,null,null,null,null,0,0,0]
[null,null,null,"○","Drug use",null,null,null,null,null,null,0,0,0]
[null,null,"Biological risk factors","To understand which prevention strategies are more/less important, data are available on biological drivers of HIV acquisition by AGYW in the country &/or sub-national area(s) prioritised, including:",null,null,null,null,null,{"$f":"IFERROR(O60,\"-\")","v":"-"},null,null,null,null,{"$f":"IFERROR(ROUND(AVERAGEIF(L61:N64,\"<>0\",L61:N64),0),\"-\")","v":"-"}]
[null,null,null,"○","Biological susceptibility of women and adolescent girls",null,null,null,null,null,null,{"$f":"IF(ISBLANK(G61),0,1)","v":0},{"$f":"IF(ISBLANK(H61),0,3)","v":0},{"$f":"IF(ISBLANK(I61),0,5)","v":0}]
[null,null,null,"○","HIV viral load among male partners (by age band)",null,null,null,null,null,null,0,0,0]
[null,null,null,"○","Low prevalence of male circumcision",null,null,null,null,null,null,0,0,0]
[null,null,null,"○","Prevalence of sexually transmitted infections and other co-infections",null,null,null,null,null,null,0,0,0]
[null,null,"Structural risk factors","To understand which prevention strategies are more/less important, data are available on structural drivers of HIV acquisition by AGYW in the country &/or sub-national area(s) prioritised, including:",null,null,null,null,null,{"$f":"IFERROR(O65,\"-\")","v":"-"},null,null,null,null,{"$f":"IFERROR(ROUND(AVERAGEIF(L66:N76,\"<>0\",L66:N76),0),\"-\")","v":"-"}]
[null,null,null,"○","Harmful social and gender norms",null,null,null,null,null,null,{"$f":"IF(ISBLANK(G66),0,1)","v":0},{"$f":"IF(ISBLANK(H66),0,3)","v":0},{"$f":"IF(ISBLANK(I66),0,5)","v":0}]
[null,null,null,"○","Gender inequality and unequal power dynamics",null,null,null,null,null,null,0,0,0]
[null,null,null,"○","Low secondary school attendance / high dropout rates",null,null,null,null,null,null,0,0,0]
[null,null,null,"○","Lack of economic empowerment / high unemployment",null,null,null,null,null,null,0,0,0]
[null,null,null,"○","Labour migration and spousal separation",null,null,null,null,null,null,0,0,0]
[null,null,null,"○","Barriers to accessing sexual and reproductive health & HIV services",null,null,null,null,null,null,0,0,0]
[null,null,null,"○","Orphanhood",null,null,null,null,null,null,0,0,0]
[null,null,null,"○","Child sexual abuse",null,null,null,null,null,null,0,0,0]
[null,null,null,"○","Gender based violence",null,null,null,null,null,null,0,0,0]
[null,null,null,"○"," Criminalisation of same-sex sexual activity, gender diversity, sex work and drug use"]
[null,null,null,"○","Marriage patterns",null,null,null,null,null,null,{"$f":"IF(ISBLANK(G76),0,1)","v":0},{"$f":"IF(ISBLANK(H76),0,3)","v":0},{"$f":"IF(ISBLANK(I76),0,5)","v":0}]
[null,null,"Develop a Results Framework (Theory of Change)"]
[null,null,"Define & prioritise HIV prevention packages per applicable incidence category\n","The prioritisation and investment matrix and decision making aide have been used to guide which HIV prevention packages have been implemented in different locations given level of risk",null,null,null,null,null,{"$f":"IFERROR(O78,\"-\")","v":"-"},null,{"$f":"IF(ISBLANK(G78),0,1)","v":0},{"$f":"IF(ISBLANK(H78),0,3)","v":0},{"$f":"IF(ISBLANK(I78),0,5)","v":0},{"$f":"IFERROR(ROUND(AVERAGEIF(L78:N78,\"<>0\",L78:N78),0),\"-\")","v":"-"}]
[null,null,"Results Framework/Theory of Change Includes Programmatic Coverage Targets","Programmatic targets are set for HIV prevention in moderate and high incidence locations",null,null,null,null,null,"-",null,null,null,null,{"$f":"IFERROR(ROUND(AVERAGEIF(L80:N83,\"<>0\",L80:N83),0),\"-\")","v":"-"}]
[null,null,null,"○","Outcome targets have been defined and are formulated in a way that directly impacts on AGYW HIV incidence",null,null,null,null,null,null,{"$f":"IF(ISBLANK(G80),0,1)","v":0},{"$f":"IF(ISBLANK(H80),0,3)","v":0},{"$f":"IF(ISBLANK(I80),0,5)","v":0}]
[null,null,null,"○","Intermediate outcomes are clearly defined and contribute to the higher-level outcomes, which in turn affect HIV incidence",null,null,null,null,null,null,0,0,0]
[null,null,null,"○","Coverage targets defined and are adequate in scale and scope to achieve the outcome targets",null,null,null,null,null,null,0,0,0]
[null,null,null,"○","Targets are disaggregated and tracked for different age groups (15-19; 20-24; 25-29)",null,null,null,null,null,null,0,0,0]
[null,null,"Results Framework/Theory of Change  Includes Cross-Cutting activities & Complementary Action","The Results Framework/Theory of Change for AGYW is linked to broader efforts in the areas of:",null,null,null,null,null,{"$f":"IFERROR(O84,\"-\")","v":"-"},null,null,null,null,{"$f":"IFERROR(ROUND(AVERAGEIF(L85:N92,\"<>0\",L85:N92),0),\"-\")","v":"-"}]
[null,null,null,"○","HIV prevention",null,null,null,null,null,null,{"$f":"IF(ISBLANK(G85),0,1)","v":0},{"$f":"IF(ISBLANK(H85),0,3)","v":0},{"$f":"IF(ISBLANK(I85),0,5)","v":0}]
[null,null,null,"○","HIV testing services and referrals",null,null,null,null,null,null,0,0,0]
[null,null,null,"○","Sexual and reproductive health",null,null,null,null,null,null,0,0,0]
[null,null,null,"○","Adolescent and women's health and well-being",null,null,null,null,null,null,0,0,0]
[null,null,null,"○","Gender based violence prevention and response",null,null,null,null,null,null,0,0,0]
[null,null,null,"○","Social protection",null,null,null,null,null,null,0,0,0]
[null,null,null,"○","Education",null,null,null,null,null,null,0,0,0]
[null,null,null,"○","Other development activities",null,null,null,null,null,null,0,0,0]
[null,null,"Define/Develop Delivery Systems"]
[null,null,"Develop/ensure health platforms","Health sector platforms are equipped to routinely offer basic interventions in all locations",null,null,null,null,null,{"$f":"IFERROR(O94,\"-\")","v":"-"},null,null,null,null,{"$f":"IFERROR(ROUND(AVERAGEIF(L95:N102,\"<>0\",L95:N102),0),\"-\")","v":"-"}]
[null,null,null,"○","The role of health platforms in AGYW prevention responses is clearly defined (across applicable policies, guidelines and operational plans)",null,null,null,null,null,null,{"$f":"IF(ISBLANK(G95),0,1)","v":0},{"$f":"IF(ISBLANK(H95),0,3)","v":0},{"$f":"IF(ISBLANK(I95),0,5)","v":0}]
[null,null,null,"○","Appropriate staffing and supervision are in place ",null,null,null,null,null,null,0,0,0]
[null,null,null,"○","Platform is non-stigmatising ",null,null,null,null,null,null,0,0,0]
[null,null,null,"○","Sensitised providers are initiating prevention counselling, offering condoms, lubricant, sexual and reproductive health, pre-exposure prophylaxis (PrEP) and other targeted HIV prevention services",null,null,null,null,null,null,0,0,0]
[null,null,null,"○","Provides community-based demand generation and outreach HIV prevention services ",null,null,null,null,null,null,0,0,0]
[null,null,null,"○","Provides active PrEP demand generation for young women at highest risk",null,null,null,null,null,null,0,0,0]
[null,null,null,"○","Community-based monitoring systems/resources exist to illicit feedback on  the quality of services being delivered through this platform",null,null,null,null,null,null,0,0,0]
[null,null,null,"○","There are active referral pathways between this platform and others (education, community)",null,null,null,null,null,null,0,0,0]
[null,null,"Develop/ensure education platforms","Education platforms are equipped to routinely offer basic interventions in all locations",null,null,null,null,null,{"$f":"IFERROR(O103,\"-\")","v":"-"},null,null,null,null,{"$f":"IFERROR(ROUND(AVERAGEIF(L104:N107,\"<>0\",L104:N107),0),\"-\")","v":"-"}]
[null,null,null,"○","Systems in place to ensure AGYW are enrolled in secondary education",null,null,null,null,null,null,{"$f":"IF(ISBLANK(G104),0,1)","v":0},{"$f":"IF(ISBLANK(H104),0,3)","v":0},{"$f":"IF(ISBLANK(I104),0,5)","v":0}]
[null,null,null,"○","The role of education platforms in AGYW prevention responses is clearly defined (across applicable policies, guidelines and operational plans)",null,null,null,null,null,null,0,0,0]
[null,null,null,"○","Dedicated school-based HIV prevention campaigns are defined and implemented in schools and tertiary institutions",null,null,null,null,null,null,0,0,0]
[null,null,null,null,"Clearly defined linkages to service provision within or near the school (counselling and testing, condom and lubricant distribution and promotion, referrals to other prevention services etc",null,null,null,null,null,null,0,0,0]
[null,null,"Develop/ensure community platforms (lead non-governmental organisations (NGOs)/civil society organisations (CSOs)) ","Community platforms are equipped to routinely offer basic interventions in all locations",null,null,null,null,null,{"$f":"IFERROR(O108,\"-\")","v":"-"},null,null,null,null,{"$f":"IFERROR(ROUND(AVERAGEIF(L109:N117,\"<>0\",L109:N117),0),\"-\")","v":"-"}]
[null,null,null,"○","The role of community platforms in AGYW prevention responses is clearly defined (across applicable policies, guidelines and operational plans)",null,null,null,null,null,null,{"$f":"IF(ISBLANK(G109),0,1)","v":0},{"$f":"IF(ISBLANK(H109),0,3)","v":0},{"$f":"IF(ISBLANK(I109),0,5)","v":0}]
[null,null,null,"○","Appropriate staffing and supervision are in place ",null,null,null,null,null,null,0,0,0]
[null,null,null,"○","Community platforms have clearly defined for demand generation strategies for HIV prevention programmes for AGYW",null,null,null,null,null,null,0,0,0]
[null,null,null,"○","Role of NGOs/CSOs with respect to the provision of HIV prevention services for AGYW is clearly defined - including linkages to health and education platforms",null,null,null,null,null,null,0,0,0]
[null,null,null,"○","Provides community mobilisation & interpersonal communication on basic HIV prevention knowledge, risk perception, and on transforming HIV related community and gender norms",null,null,null,null,null,null,0,0,0]
[null,null,null,"○","A community implementation system and a division of labour between NGOs/CSOs is in place to allow for scale",null,null,null,null,null,null,0,0,0]
[null,null,null,"○","Community-based monitoring systems/resources exist to illicit feedback on  the quality of services being delivered through this platform",null,null,null,null,null,null,0,0,0]
[null,null,null,"○","Works closely with community leaders",null,null,null,null,null,null,0,0,0]
[null,null,null,"○","Makes use of Peer Outreach Educators & Community Health Workers",null,null,null,null,null,null,0,0,0]
[null,null,"Accessible services","Services are accessible to AGYW communities and they:",null,null,null,null,null,{"$f":"IFERROR(O118,\"-\")","v":"-"},null,null,null,null,{"$f":"IFERROR(ROUND(AVERAGEIF(L119:N125,\"<>0\",L119:N125),0),\"-\")","v":"-"}]
[null,null,null,"○","Are designed & developed based on formative research conducted in the needs assessment ",null,null,null,null,null,null,{"$f":"IF(ISBLANK(G119),0,1)","v":0},{"$f":"IF(ISBLANK(H119),0,3)","v":0},{"$f":"IF(ISBLANK(I119),0,5)","v":0}]
[null,null,null,"○","Include differentiated service delivery models to meet the needs to AGYW in their diversity",null,null,null,null,null,null,0,0,0]
[null,null,null,"○","Operating hours are appropriate for AGYW that the services are targeting",null,null,null,null,null,null,0,0,0]
[null,null,null,"○","Are integrated with general health system and provide comprehensive care packages ",null,null,null,null,null,null,0,0,0]
[null,null,null,"○","Have a consistent supply of services and products",null,null,null,null,null,null,0,0,0]
[null,null,null,"○","Services are provided in a way that is most accessible (e.g. addressing age of consent and assent to services, with parental engagement wherever possible)",null,null,null,null,null,null,0,0,0]
[null,null,null,"○","AGYW are aware of where they can obtain the health services they need, and are both able and willing to do so when needed",null,null,null,null,null,null,0,0,0]
[null,null,"Youth-friendly/Acceptable services","Services are acceptable to AGYW and:",null,null,null,null,null,{"$f":"IFERROR(O126,\"-\")","v":"-"},null,null,null,null,{"$f":"IFERROR(ROUND(AVERAGEIF(L127:N133,\"<>0\",L127:N133),0),\"-\")","v":"-"}]
[null,null,null,"○","They are confidential (even for adolescents)",null,null,null,null,null,null,{"$f":"IF(ISBLANK(G127),0,1)","v":0},{"$f":"IF(ISBLANK(H127),0,3)","v":0},{"$f":"IF(ISBLANK(I127),0,5)","v":0}]
[null,null,null,"○","Providers are sensitive to needs of AGYW in their diversity, non-judgemental, and non-stigmatising",null,null,null,null,null,null,0,0,0]
[null,null,null,"○","Providers are trained to be able to offer comprehensive package of intervention specific to AGYW ",null,null,null,null,null,null,0,0,0]
[null,null,null,"○","Providers ensure linkages to address specific needs of young expectant mothers, disabled, young women using drugs and other particularly vulnerable groups of AGYW\n",null,null,null,null,null,null,0,0,0]
[null,null,null,"○","They create a safe and supportive environment ",null,null,null,null,null,null,0,0,0]
[null,null,null,"○","Providers run support groups for AGYW",null,null,null,null,null,null,0,0,0]
[null,null,null,"○","On-line interventions are conducted in ethical ways, respect privacy and confidentiality of clients",null,null,null,null,null,null,0,0,0]
[null,null,"Tailored/Appropriate Services","Service offering addresses adolescent girls and young women's risks and seroprevalence levels:",null,null,null,null,null,{"$f":"IFERROR(O134,\"-\")","v":"-"},null,null,null,null,{"$f":"IFERROR(ROUND(AVERAGEIF(L135:N137,\"<>0\",L135:N137),0),\"-\")","v":"-"}]
[null,null,null,"○","Service providers utilise risk assessment tools to offer appropriate and priority services to AGYW and their partners in most suitable settings",null,null,null,null,null,null,{"$f":"IF(ISBLANK(G135),0,1)","v":0},{"$f":"IF(ISBLANK(H135),0,3)","v":0},{"$f":"IF(ISBLANK(I135),0,5)","v":0}]
[null,null,null,"○","Available service package is aligned with incidence level of the setting (moderate, high)",null,null,null,null,null,null,0,0,0]
[null,null,null,"○","Service offering is adjusted to AGYW risks and needs over time",null,null,null,null,null,null,0,0,0]
[null,null,"Peer outreach educators (POE), community healthcare workers, and other relevant cadres for AGYW programmes","Peer outreach educators, community healthcare workers, and other relevant cadres for AGYW programmes are used effectively in the programme:\n",null,null,null,null,null,{"$f":"IFERROR(O138,\"-\")","v":"-"},null,null,null,null,{"$f":"IFERROR(ROUND(AVERAGEIF(L139:N146,\"<>0\",L139:N146),0),\"-\")","v":"-"}]
[null,null,null,"○","They are drawn from the AGYW community that they represent or serve",null,null,null,null,null,null,{"$f":"IF(ISBLANK(G139),0,1)","v":0},{"$f":"IF(ISBLANK(H139),0,3)","v":0},{"$f":"IF(ISBLANK(I139),0,5)","v":0}]
[null,null,null,"○","Training curriculum available, comprehensive, appropriate and up to date ",null,null,null,null,null,null,0,0,0]
[null,null,null,"○","Tiered training plan is in place to enhance peer outreach educators skills, confidence and leadership ",null,null,null,null,null,null,0,0,0]
[null,null,null,"○","Peer outreach educators are remunerated",null,null,null,null,null,null,0,0,0]
[null,null,null,"○","Outreach tools available for community mobilisation to promote access to services",null,null,null,null,null,null,0,0,0]
[null,null,null,"○","Utilise evidence-based communication messages and materials",null,null,null,null,null,null,0,0,0]
[null,null,null,"○","Provide information about services available and refer and link beneficiaries to services ",null,null,null,null,null,null,0,0,0]
[null,null,null,"○","Provide counselling and emotional support to sustain treatment, continuation on PrEP, family planning and other services to which beneficiaries are linked",null,null,null,null,null,null,0,0,0]
[null,null,"Meaningful engagement of affected communities in leadership & coordination","AGYW are represented in national and subnational coordination bodies and TWGs \n",null,null,null,null,null,{"$f":"IFERROR(O147,\"-\")","v":"-"},null,null,null,null,{"$f":"IFERROR(ROUND(AVERAGEIF(L148:N150,\"<>0\",L148:N150),0),\"-\")","v":"-"}]
[null,null,null,"○","They actively participate in decision-making processes as equal partners ",null,null,null,null,null,null,{"$f":"IF(ISBLANK(G148),0,1)","v":0},{"$f":"IF(ISBLANK(H148),0,3)","v":0},{"$f":"IF(ISBLANK(I148),0,5)","v":0}]
[null,null,null,"○","They are supported to solicit feedback and report back on key decisions to constituencies they represent",null,null,null,null,null,null,0,0,0]
[null,null,null,"○","There is evidence that feedback, input and expert advice provided by AGYW-led organisation is taken into account",null,null,null,null,null,null,0,0,0]
[null,null,"Define Management Mechanism"]
[null,null,"National & sub-national Management systems","Systems, processes and plans at national and sub-national level actively manage and contribute to an impactful and appropriate programmatic response",null,null,null,null,null,{"$f":"IFERROR(O152,\"-\")","v":"-"},null,null,null,null,{"$f":"IFERROR(ROUND(AVERAGEIF(L153:N165,\"<>0\",L153:N165),0),\"-\")","v":"-"}]
[null,null,null,"○","Coordination between funding partners (at national levels), local programmes, AGYW representatives, implementing partners, ministries/government departments (at national and sub-national levels) has been achieved",null,null,null,null,null,null,{"$f":"IF(ISBLANK(G153),0,1)","v":0},{"$f":"IF(ISBLANK(H153),0,3)","v":0},{"$f":"IF(ISBLANK(I153),0,5)","v":0}]
[null,null,null,"○","Multisectoral coordination with all other ministries/departments (e.g. finance & law enforcement)  has been achieved and all government departments are engaged",null,null,null,null,null,null,0,0,0]
[null,null,null,"○","A stringent, fair and documented approach is employed to select and contract local non-governmental organisation partners and other external service providers responsible for sub-national implementation",null,null,null,null,null,null,0,0,0]
[null,null,null,"○","Leadership of national, provincial and district AIDS council bodies regularly interface with nongovernmental organization partners./ service providers",null,null,null,null,null,null,0,0,0]
[null,null,null,"○","Management systems employ a structured approach (linked to national strategic & operation plans) with flexibility for local adaptation and the setting of priorities",null,null,null,null,null,null,0,0,0]
[null,null,null,"○","There are established fora for quarterly peer review of programmes at the subnational level, as well as one of annual review at both the subnational and national levels",null,null,null,null,null,null,0,0,0]
[null,null,null,"○","Representatives of AGYW groups are included",null,null,null,null,null,null,0,0,0]
[null,null,null,"○","Planning with local leaders and participatory district assessments are undertaken regularly",null,null,null,null,null,null,0,0,0]
[null,null,null,"○","Coverage targets are established, regularly reviewed and programmes are implemented accordingly",null,null,null,null,null,null,0,0,0]
[null,null,null,"○","There are established government data management & information systems for monitoring and reporting AGYW prevention outcomes/indicators",null,null,null,null,null,null,0,0,0]
[null,null,null,"○","Priorities have been well defined and majority of targets are routinely achieved",null,null,null,null,null,null,0,0,0]
[null,null,null,"○","Bi-annual outcome-level evaluations are conducted",null,null,null,null,null,null,0,0,0]
[null,null,null,"○","Rigorous impact evaluations are conducted as required by national planning cycles",null,null,null,null,null,null,0,0,0]
[null,null,"Develop Costed Operational Plan"]
[null,null,"Operational Plan","A clear and costed operational plan with timelines has been established",null,null,null,null,null,{"$f":"IFERROR(O167,\"-\")","v":"-"},null,null,null,null,{"$f":"IFERROR(ROUND(AVERAGEIF(L168:N170,\"<>0\",L168:N170),0),\"-\")","v":"-"}]
[null,null,null,"○","The plan is current and regularly updated",null,null,null,null,null,null,{"$f":"IF(ISBLANK(G168),0,1)","v":0},{"$f":"IF(ISBLANK(H168),0,3)","v":0},{"$f":"IF(ISBLANK(I168),0,5)","v":0}]
[null,null,null,"○","Operational plans are shared with national & subnational implementing partners/departments",null,null,null,null,null,null,0,0,0]
[null,null,null,"○","AGYW are involved in operational planning processes",null,null,null,null,null,null,0,0,0]
[null,null,"Costing & Available Resources","Funding plans are in place",null,null,null,null,null,{"$f":"IFERROR(O171,\"-\")","v":"-"},null,null,null,null,{"$f":"IFERROR(ROUND(AVERAGEIF(L172:N177,\"<>0\",L172:N177),0),\"-\")","v":"-"}]
[null,null,null,"○","Resource allocation has been prioritised based on expected programme impact",null,null,null,null,null,null,{"$f":"IF(ISBLANK(G172),0,1)","v":0},{"$f":"IF(ISBLANK(H172),0,3)","v":0},{"$f":"IF(ISBLANK(I172),0,5)","v":0}]
[null,null,null,"○","AGYW prevention response pulls appropriately from multiple funding sources (HIV prevention financing, other HIV financing, other public health & development funding)",null,null,null,null,null,null,0,0,0]
[null,null,null,"○","Unit costs exist for all programme elements",null,null,null,null,null,null,0,0,0]
[null,null,null,"○","Domestic & External funding landscape is mapped",null,null,null,null,null,null,0,0,0]
[null,null,null,"○","A strategy has been developed to close financing gaps",null,null,null,null,null,null,0,0,0]
[null,null,null,"○","Budgets are linked to resource needs of operational plans for national and sub-national targets",null,null,null,null,null,null,0,0,0]
[null,null,"Develop M&E Plan"]
[null,null,"Routine monitoring","Routine programme indicators are defined by government and implementing partners report against these indicators:",null,null,null,null,null,{"$f":"IFERROR(O179,\"-\")","v":"-"},null,null,null,null,{"$f":"IFERROR(ROUND(AVERAGEIF(L180:N188,\"<>0\",L180:N188),0),\"-\")","v":"-"}]
[null,null,null,"○","Comprehensive data is reported ",null,null,null,null,null,null,{"$f":"IF(ISBLANK(G180),0,1)","v":0},{"$f":"IF(ISBLANK(H180),0,3)","v":0},{"$f":"IF(ISBLANK(H180),0,5)","v":0}]
[null,null,null,null," > Routinely (monthly, quarterly)",null,null,null,null,null,null,0,0,0]
[null,null,null,null," > Completely",null,null,null,null,null,null,0,0,{"$f":"IF(ISBLANK(I182),0,5)","v":0}]
[null,null,null,null," > At all levels",null,null,null,null,null,null,0,0,0]
[null,null,null,null," > By all implementing partners",null,null,null,null,null,null,0,0,0]
[null,null,null,"○","Data is routinely reviewed by all stakeholders (government, civil society, AGYW community, implementing partners, donors) and used to improve programmes ",null,null,null,null,null,null,0,0,0]
[null,null,null,"○","Includes regular feedback from beneficiaries",null,null,null,null,null,null,0,0,0]
[null,null,null,"○","Includes health systems data ",null,null,null,null,null,null,0,0,0]
[null,null,null,"○","Monitors layering of services",null,null,null,null,null,null,0,0,{"$f":"IF(ISBLANK(H188),0,5)","v":0}]
[null,null,"Referral system tracking","Referral tracking systems are in place and include:",null,null,null,null,null,{"$f":"IFERROR(O189,\"-\")","v":"-"},null,null,null,null,{"$f":"IFERROR(ROUND(AVERAGEIF(L190:N195,\"<>0\",L190:N195),0),\"-\")","v":"-"}]
[null,null,null,"○"," Sustainability defined and routinely monitored",null,null,null,null,null,null,{"$f":"IF(ISBLANK(G190),0,1)","v":0},{"$f":"IF(ISBLANK(H190),0,3)","v":0},{"$f":"IF(ISBLANK(I190),0,5)","v":0},null,{"$f":"IF(MAX(L190:N190)=0,\"\",MAX(L190:N190))","v":""}]
[null,null,null,"○","A widely available referral tool, including clear Standard Operating Procedure (SOP)",null,null,null,null,null,null,0,0,0]
[null,null,null,"○","A referral directory at the facility and at the peer outreach educator, peer testers or community health worker organisations ",null,null,null,null,null,null,0,0,0]
[null,null,null,"○","Recording of outcomes ",null,null,null,null,null,null,0,0,0]
[null,null,null,"○","Feedback mechanisms between patients and providers (of referrals) ",null,null,null,null,null,null,0,0,0]
[null,null,null,"○","Referral reporting (on a monthly basis) to monitor efficacy of referral system",null,null,null,null,null,null,0,0,0]
[null,null,"Quality assessment","Systems to collect data on programme quality and related indicators have been defined and:\n",null,null,null,null,null,{"$f":"IFERROR(O196,\"-\")","v":"-"},null,null,null,null,{"$f":"IFERROR(ROUND(AVERAGEIF(L197:N201,\"<>0\",L197:N201),0),\"-\")","v":"-"}]
[null,null,null,"○","Accurate data is collected",null,null,null,null,null,null,{"$f":"IF(ISBLANK(G197),0,1)","v":0},{"$f":"IF(ISBLANK(H197),0,3)","v":0},{"$f":"IF(ISBLANK(I197),0,5)","v":0}]
[null,null,null,"○","Data is acted on ",null,null,null,null,null,null,0,0,0]
[null,null,null,"○","Feedback mechanisms allow AGYWs to evaluate services they have received as a mechanism to monitor programme quality",null,null,null,null,null,null,0,0,0]
[null,null,null,"○","Data is regularly audited ",null,null,null,null,null,null,0,0,0]
[null,null,null,"○","Quality benchmarks are in place",null,null,null,null,null,null,0,0,0]
[null,null,"Surveillance ","Surveillance allows for accurate description of the context and outcomes/impact of the HIV prevention programme for adolescent girls and young women",null,null,null,null,null,{"$f":"IFERROR(O202,\"-\")","v":"-"},null,null,null,null,{"$f":"IFERROR(ROUND(AVERAGEIF(L203:N206,\"<>0\",L203:N206),0),\"-\")","v":"-"}]
[null,null,null,"○","Study results are used to inform decision making and course correction ",null,null,null,null,null,null,{"$f":"IF(ISBLANK(G203),0,1)","v":0},{"$f":"IF(ISBLANK(H203),0,3)","v":0},{"$f":"IF(ISBLANK(I203),0,5)","v":0}]
[null,null,null,"○","Involves analysis and interpretation of data at regular intervals ",null,null,null,null,null,null,0,0,0]
[null,null,null,"○","Involves regular dissemination of information to meet local, provincial, and national needs ",null,null,null,null,null,null,0,0,0]
[null,null,null,"○","Includes biological and behavioural surveys, sentinel surveys and other research studies looking at indicators for AGYWs ",null,null,null,null,null,null,0,0,0]
[null,null,"Data flow ","Data flows at each level has been defined, and:",null,null,null,null,null,{"$f":"IFERROR(O207,\"-\")","v":"-"},null,null,null,null,{"$f":"IFERROR(ROUND(AVERAGEIF(L208:N212,\"<>0\",L208:N212),0),\"-\")","v":"-"}]
[null,null,null,"○","They were developed for each relevant department/ministry (i.e. health, education, etc.)",null,null,null,null,null,null,{"$f":"IF(ISBLANK(G208),0,1)","v":0},{"$f":"IF(ISBLANK(H208),0,3)","v":0},{"$f":"IF(ISBLANK(I208),0,5)","v":0}]
[null,null,null,"○","Data use has been defined at each level ",null,null,null,null,null,null,0,0,0]
[null,null,null,"○","Open Access plan in place ",null,null,null,null,null,null,0,0,0]
[null,null,null,"○","Unique identifier code system developed ",null,null,null,null,null,null,0,0,0]
[null,null,null,"○","Data has been incorporated in the District Health Information Software (DHIS)",null,null,null,null,null,null,0,0,0]
[null,null,"Data for decision making","The National Programme, monitoring and evaluation unit of the Ministry of Health, or similar coordinating body oversees/coordinates monitoring, survey, and surveillance data collection and:",null,null,null,null,null,{"$f":"IFERROR(O213,\"-\")","v":"-"},null,null,null,null,{"$f":"IFERROR(ROUND(AVERAGEIF(L214:N221,\"<>0\",L214:N221),0),\"-\")","v":"-"}]
[null,null,null,"○","Shares data with the AGYW TWG",null,null,null,null,null,null,{"$f":"IF(ISBLANK(G214),0,1)","v":0},{"$f":"IF(ISBLANK(H214),0,3)","v":0},{"$f":"IF(ISBLANK(I214),0,5)","v":0}]
[null,null,null,"○","AGYW TWG analyses existing programme data on a quarterly basis and identifies areas for course correction",null,null,null,null,null,null,0,0,0]
[null,null,null,"○","AGYW TWG helps in development of strategies to address the gaps ",null,null,null,null,null,null,0,0,0]
[null,null,null,"○","Good quality data (valid, reliable, consistent, accurate, timely, relevant) is collected and most information needs are met, and if not met, gaps are understood ",null,null,null,null,null,null,0,0,0]
[null,null,null,"○","Data is consistently and appropriately used by members of the TWG to inform decisions ",null,null,null,null,null,null,0,0,0]
[null,null,null,"○","Data has been de-duplicated across implementing partners and doubles are minimal if present at all",null,null,null,null,null,null,0,0,0]
[null,null,null,"○","Data is aggregated centrally but can be disaggregated by locality, sex, and age",null,null,null,null,null,null,0,0,0]
[null,null,null,"○","A monitoring and evaluation plan is linked to the results framework and anchored within broader national health information systems to assist with tracking and regularly reviewing progress toward results",null,null,null,null,null,null,0,0,0]
[null,null,"The use of Unique Identifier Codes for programme monitoring","A system used to monitor programme is fully functioning and adequate to monitor programme performance",null,null,null,null,null,{"$f":"IFERROR(O222,\"-\")","v":"-"},null,null,null,null,{"$f":"IFERROR(ROUND(AVERAGEIF(L223:N226,\"<>0\",L223:N226),0),\"-\")","v":"-"}]
[null,null,null,"○","Unique identifier codes are harmonised",null,null,null,null,null,null,{"$f":"IF(ISBLANK(G223),0,1)","v":0},{"$f":"IF(ISBLANK(H223),0,3)","v":0},{"$f":"IF(ISBLANK(I223),0,5)","v":0}]
[null,null,null,"○","National programme uses aggregate unique identifier code data",null,null,null,null,null,null,0,0,0]
[null,null,null,"○","The unique identifier code is able to distinguish contact/reach, aiming for de-duplication ",null,null,null,null,null,null,0,0,0]
[null,null,null,"○","The unique identifier code is electronic-based",null,null,null,null,null,null,0,0,0]
[null,null,"Budget monitoring","The monitoring of financial and non-financial performance of the AGYW programme is integrated and routine reports are generated: ",null,null,null,null,null,{"$f":"IFERROR(O227,\"-\")","v":"-"},null,null,null,null,{"$f":"IFERROR(ROUND(AVERAGEIF(L228:N230,\"<>0\",L228:N230),0),\"-\")","v":"-"}]
[null,null,null,"○","Expenditure data  on AGYW-related interventions are easily accessible and allocated to the intervention",null,null,null,null,null,null,{"$f":"IF(ISBLANK(G228),0,1)","v":0},{"$f":"IF(ISBLANK(H228),0,3)","v":0},{"$f":"IF(ISBLANK(I228),0,5)","v":0}]
[null,null,null,"○","Accountability mechanisms for under-and over expenditure are in place",null,null,null,null,null,null,0,0,0]
[null,null,null,"○","Financial and non-financial data is used to measure value for money",null,null,null,null,null,null,0,0,0]
[]
[]
[null,null,null,null,""]
[]
[null,null,null,null,null,null,null,null,null,null,null,null,{"$f":"COUNTIF(O5:O234,\"-\")","v":32}]
[null,null,null,null,null,null,null,null,null,null,null,null,{"$f":"COUNTIF(O6:O234,\">0\")","v":0}]
[null,null,null,null,null,null,null,null,null,null,null,"Sheet Completion",{"$f":"M236/(M235+M236)","v":0},{"$f":"1-M237","v":1}]

{"sheet":"ALL - Regardless of Incidence","index":6,"n_rows":144,"n_cols":16,"rows_kept":144,"cut":false,"hidden":false,"merged":[[37,9,49,9],[50,9,67,9],[68,9,74,9],[75,9,86,9],[87,9,93,9],[75,3,75,4],[75,5,75,8],[87,3,87,4],[87,5,87,8],[55,3,55,4],[62,3,62,4],[62,5,62,8],[132,9,138,9],[139,9,140,9],[94,5,94,8],[100,5,100,8],[107,5,107,8],[116,5,116,8],[119,5,119,8],[119,9,131,9],[132,5,132,8],[100,9,106,9],[107,9,114,9],[116,9,118,9],[94,9,99,9],[1,2,1,9],[3,3,3,4],[4,2,4,10],[5,3,5,4],[5,5,5,8],[5,9,13,9],[14,3,14,4],[14,5,14,8],[14,9,30,9],[31,3,31,4],[31,5,31,8],[31,9,36,9],[37,5,37,8],[37,3,37,4],[44,3,44,4],[44,5,44,8],[50,3,50,4],[50,5,50,8],[100,2,106,2],[94,3,94,4],[68,3,68,4],[68,5,68,8],[107,2,115,2],[139,2,140,2],[5,2,13,2],[14,2,29,2],[31,2,35,2],[37,2,49,2],[50,2,67,2],[68,2,74,2],[75,2,85,2],[119,3,119,4],[132,3,132,4],[87,2,93,2],[94,2,98,2],[100,3,100,4],[107,3,107,4],[116,2,117,2],[119,2,130,2],[132,2,138,2],[116,3,116,4]]}
[]
[null,null,"Programme Implementation"]
[]
[null,null,"Element","Criteria",null,"N/A","Absent","Present but not optimal","Present and working well","Average for element","Comments (if applicable)","Absent","Present","Optimal","Average"]
[null,null,"National HIV Prevention Programme Enablers in ALL Locations"]
[null,null,"Access to primary and secondary education ","Efforts to increase access to education for AGYW have been successfully implemented and include: ",null,null,null,null,null,{"$f":"IFERROR(O6,\"-\")","v":"-"},null,null,null,null,{"$f":"IFERROR(ROUND(AVERAGEIF(L7:N14,\"<>0\",L7:N14),0),\"-\")","v":"-"}]
[null,null,null,"○","Making primary and secondary school compulsory",null,null,null,null,null,null,{"$f":"IF(ISBLANK(G7),0,1)","v":0},{"$f":"IF(ISBLANK(H7),0,3)","v":0},{"$f":"IF(ISBLANK(I7),0,5)","v":0}]
[null,null,null,"○","No-fee schooling or subsidies for poor families in countries where enrolment in school is low",null,null,null,null,null,null,0,0,0]
[null,null,null,"○","Building schools in rural locations to reduce travel distance for AGYW",null,null,null,null,null,null,0,0,0]
[null,null,null,"○","Access to school uniforms and feeding programmes ",null,null,null,null,null,null,0,0,0]
[null,null,null,"○","Access to menstrual health products ",null,null,null,null,null,null,0,0,0]
[null,null,null,"○","Ban on expulsion of pregnant AGYW ",null,null,null,null,null,null,0,0,0]
[null,null,null,"○","Re-enrolment of young mothers coupled with financial support mechanisms",null,null,null,null,null,null,0,0,0]
[null,null,null,"○","Supported with other public health & development funding",null,null,null,null,null,null,0,0,0]
[null,null,"Universal introduction of comprehensive sexuality education and school health programmes ","Evidence informed models addressing social and gender norms, risk perception and demand generation are fully implemented and: ",null,null,null,null,null,{"$f":"IFERROR(O15,\"-\")","v":"-"},null,null,null,null,{"$f":"IFERROR(ROUND(AVERAGEIF(L16:N31,\"<>0\",L16:N31),0),\"-\")","v":"-"}]
[null,null,null,"○","Include teacher training ",null,null,null,null,null,null,{"$f":"IF(ISBLANK(H16),0,1)","v":0},{"$f":"IF(ISBLANK(H16),0,3)","v":0},{"$f":"IF(ISBLANK(I16),0,5)","v":0}]
[null,null,null,"○","Does not include abstinence-only training ",null,null,null,null,null,null,{"$f":"IF(ISBLANK(G17),0,1)","v":0},0,0]
[null,null,null,"○","Include youth, civic, and parental engagement ",null,null,null,null,null,null,0,0,0]
[null,null,null,"○","Include interventions to address HIV risk reduction in age disparate relationships  ",null,null,null,null,null,null,0,0,0]
[null,null,null,"○","Provide referrals to health centres for services not provided in school",null,null,null,null,null,null,0,0,0]
[null,null,null,"○","Comprehensive sexuality education is administered according to International Guidelines:",null,null,null,null,null,null,0,0,0]
[null,null,null,null,"> Grounded in human rights, ",null,null,null,null,null,null,0,0,0]
[null,null,null,null,"> Has a focus on gender and gender equality",null,null,null,null,null,null,0,0,0]
[null,null,null,null,"> Contains thorough and scientifically accurate information",null,null,null,null,null,null,0,0,0]
[null,null,null,null,"> Is provided in a safe and health learning environment free from bullying and discrimination",null,null,null,null,null,null,0,0,0]
[null,null,null,null,"> Contains links to sexual and reproductive health services and other initiatives that address gender inequality and empowerment",null,null,null,null,null,null,0,0,0]
[null,null,null,null,"> Is conducted with participatory teaching methods",null,null,null,null,null,null,0,0,0]
[null,null,null,null,"> Includes lessons on basic skills for civic engagement and advocacy",null,null,null,null,null,null,0,0,0]
[null,null,null,null,"> Content is specifically adapted to cultural context and needs of young people ",null,null,null,null,null,null,0,0,0]
[null,null,null,null,"> Content is developmentally appropriate but is consistent across all age groupings and include both in school and out-off school programmes",null,null,null,null,null,null,0,0,0]
[null,null,null,"○","Supported with other public health & development funding",null,null,null,null,null,null,0,0,0]
[null,null,"Social support and economic empowerment of vulnerable adolescents","Country-specific social support and economic empowerment incentives are accessible to AGYW with specific vulnerabilities",null,null,null,null,null,{"$f":"IFERROR(O32,\"-\")","v":"-"},null,null,null,null,{"$f":"IFERROR(ROUND(AVERAGEIF(L33:N37,\"<>0\",L33:N37),0),\"-\")","v":"-"}]
[null,null,null,"○","AGYW have access to social protection in the form of microfinance initiatives that are implemented alongside other social empowerment interventions",null,null,null,null,null,null,{"$f":"IF(ISBLANK(G33),0,1)","v":0},{"$f":"IF(ISBLANK(H33),0,3)","v":0},{"$f":"IF(ISBLANK(I33),0,5)","v":0}]
[null,null,null,"○","Prioritise AGYW aged 13-22 with risks & vulnerabilities that can be effectively addressed with economic incentives",null,null,null,null,null,null,0,0,0]
[null,null,null,"○","Cash transfers are complemented with other HIV prevention programmes",null,null,null,null,null,null,0,0,0]
[null,null,null,"○","Country-level analysis has been completed to ensure that cash transfer programme design is appropriate and its effect/impact can be measured",null,null,null,null,null,null,0,0,0]
[null,null,null,"○","Supported with other public health & development funding",null,null,null,null,null,null,0,0,0]
[null,null,"Access to integrated sexual and reproductive health","All AGYW have access to family planning and other sexual and reproductive health services and:",null,null,null,null,null,{"$f":"IFERROR(O38,\"-\")","v":"-"},null,null,null,null,{"$f":"IFERROR(ROUND(AVERAGEIF(L39:N44,\"<>0\",L39:N44),0),\"-\")","v":"-"},{"$f":"IFERROR(IF(ISBLANK(G38),ROUND(AVERAGEIF(O38:O50,\"<>0\",O38:O50),0),O38),\"-\")","v":"-"}]
[null,null,null,"○","Include access to the Human Papillomavirus (HPV) vaccination and screening for cervical cancer ",null,null,null,null,null,null,{"$f":"IF(ISBLANK(G39),0,1)","v":0},{"$f":"IF(ISBLANK(H39),0,3)","v":0},{"$f":"IF(ISBLANK(I39),0,5)","v":0}]
[null,null,null,"○","Contraceptive methods are  widely distributed in sufficient quantity",null,null,null,null,null,null,0,0,0]
[null,null,null,"○","Demonstration workshops are regularly scheduled ",null,null,null,null,null,null,0,0,0]
[null,null,null,"○","Include access to a mix of contraceptive options",null,null,null,null,null,null,0,0,0]
[null,null,null,"○","Services are integrated with HIV prevention",null,null,null,null,null,null,0,0,0]
[null,null,null,"○","Provided alongside comprehensive sexually transmitted infection services",null,null,null,null,null,null,0,0,0]
[null,null,null,"AGYW exposed to violence, including sexual violence, and/or exposed to HIV have access to comprehensive violence against women services including HIV prevention which:",null,null,null,null,null,null,null,null,null,null,{"$f":"IFERROR(ROUND(AVERAGEIF(L46:N50,\"<>0\",L46:N50),0),\"-\")","v":"-"}]
[null,null,null,"○","Are integrated into existing health care services ",null,null,null,null,null,null,{"$f":"IF(ISBLANK(G46),0,1)","v":0},{"$f":"IF(ISBLANK(H46),0,3)","v":0},{"$f":"IF(ISBLANK(I46),0,5)","v":0}]
[null,null,null,"○","Are provided by health care professionals who were trained to offer support to women who have experienced gender based violence (GBV)",null,null,null,null,null,null,0,0,0]
[null,null,null,"○","Include first line support from trained health care providers (empathetic listening, non-judgemental attitude, privacy, confidentiality, and linkage to other services)",null,null,null,null,null,null,0,0,0]
[null,null,null,"○","Include emergency contraception, sexually transmitted infection prophylaxis including post exposure prophylaxis (PEP) within 72 hours, and linkage to support, counselling, and other interventions where appropriate as determined by a complete history",null,null,null,null,null,null,0,0,0]
[null,null,null,"○","Supported with other health financing",null,null,null,null,null,null,0,0,0]
[null,null,"Access to SRH and rights including legal and policy support ","Efforts to increase knowledge of sexual and reproductive health and rights are implemented and well publicised among AGYW, and include: ",null,null,null,null,null,{"$f":"IFERROR(O51,\"-\")","v":"-"},null,null,null,null,{"$f":"IFERROR(ROUND(AVERAGEIF(L52:N68,\"<>0\",L52:N55),0),\"-\")","v":"-"}]
[null,null,null,"○","Enforcing legislation that prevents discrimination or stigma regarding access to sexual and reproductive health services",null,null,null,null,null,null,{"$f":"IF(ISBLANK(G52),0,1)","v":0},{"$f":"IF(ISBLANK(H52),0,3)","v":0},{"$f":"IF(ISBLANK(I52),0,5)","v":0}]
[null,null,null,"○","Informing AGYW of their rights to access sexual and reproductive health services",null,null,null,null,null,null,0,0,0]
[null,null,null,"○","Interventions which integrate justice and health through collaboration (i.e. drop in centres and reporting mechanisms for rights violations)",null,null,null,null,null,null,0,0,0]
[null,null,null,"○","Groups that actively advocate for AGYW programmes and funding",null,null,null,null,null,null,0,0,0]
[null,null,null,"Mechanisms to prevent violence against AGYWs are in place and includes:",null,null,null,null,null,null,null,null,null,null,{"$f":"IFERROR(ROUND(AVERAGEIF(L57:N62,\"<>0\",L57:N62),0),\"-\")","v":"-"}]
[null,null,null,"○","  Information about safety",null,null,null,null,null,null,{"$f":"IF(ISBLANK(G57),0,1)","v":0},{"$f":"IF(ISBLANK(H57),0,3)","v":0},{"$f":"IF(ISBLANK(I57),0,5)","v":0}]
[null,null,null,"○","  Safe spaces (including drop in centres)",null,null,null,null,null,null,0,0,0]
[null,null,null,"○","  School-based programmes to prevent dating violence ",null,null,null,null,null,null,0,0,0]
[null,null,null,"○","  School based training to help children recognize and avoid potentially sexually abusive situations",null,null,null,null,null,null,0,0,{"$f":"IF(ISBLANK(H60),0,5)","v":0}]
[null,null,null,"○","  Community mobilisation around GBV",null,null,null,null,null,null,0,0,0]
[null,null,null,"○","  Working with men and boys in groups to promote gender-equitable attitudes in high-burden areas",null,null,null,null,null,null,0,0,{"$f":"IF(ISBLANK(I62),0,5)","v":0}]
[null,null,null,"Violence against AGYW has been consistently addressed and includes:",null,null,null,null,null,null,null,null,null,null,{"$f":"IFERROR(ROUND(AVERAGEIF(L64:N68,\"<>0\",L64:N68),0),\"-\")","v":"-"}]
[null,null,null,"○","  Mechanisms to refer young women who have experienced GBV into active GBV programmes  ",null,null,null,null,null,null,{"$f":"IF(ISBLANK(G64),0,1)","v":0},{"$f":"IF(ISBLANK(H64),0,3)","v":0},{"$f":"IF(ISBLANK(I64),0,5)","v":0}]
[null,null,null,"○","  Mechanisms to refer children to appropriate child-protection services",null,null,null,null,null,null,0,0,0]
[null,null,null,"○","  Mechanisms to monitor and coordinate responses at a community level ",null,null,null,null,null,null,0,0,0]
[null,null,null,"○","  Functional mechanisms to report GBV experiences which extend beyond police and can include paralegal support from organisations",null,null,null,null,null,null,0,0,0]
[null,null,null,"○","Supported with other health financing",null,null,null,null,null,null,0,0,0]
[null,null,"Youth-friendly health systems","The establishment of youth friendly health systems (including trained providers, conducive hours, etc) is prioritised & supported with other health financing",null,null,null,null,null,{"$f":"IFERROR(O69,\"-\")","v":"-"},null,null,null,null,{"$f":"IFERROR(ROUND(AVERAGEIF(L70:N75,\"<>0\",L70:N75),0),\"-\")","v":"-"}]
[null,null,null,"○","Equitable: all adolescents, not just certain groups, are able to obtain the health services they need",null,null,null,null,null,null,{"$f":"IF(ISBLANK(G70),0,1)","v":0},{"$f":"IF(ISBLANK(H70),0,3)","v":0},{"$f":"IF(ISBLANK(I70),0,5)","v":0}]
[null,null,null,"○","Accessible: adolescents are able to obtain the services that are provided",null,null,null,null,null,null,0,0,0]
[null,null,null,"○","Acceptable: health services are provided in ways that meet the expectations of adolescent clients",null,null,null,null,null,null,0,0,0]
[null,null,null,"○","Appropriate: the right health services that adolescents need are provided",null,null,null,null,null,null,0,0,0]
[null,null,null,"○","Effective: the right health services are provided in the right way and make a positive contribution to the health of adolescents",null,null,null,null,null,null,0,0,0]
[null,null,null,"○","Supported with other health financing",null,null,null,null,null,null,0,0,0]
[null,null,"HIV testing and treatment services","Targeted HIV testing, treatment, counselling and support is available for AGYW and their sex partners and: ",null,null,null,null,null,{"$f":"IFERROR(O76,\"-\")","v":"-"},null,null,null,null,{"$f":"IFERROR(ROUND(AVERAGEIF(L77:N87,\"<>0\",L77:N87),0),\"-\")","v":"-"}]
[null,null,null,"○","World Health Organization standards for HIV testing services are implemented",null,null,null,null,null,null,{"$f":"IF(ISBLANK(G77),0,1)","v":0},{"$f":"IF(ISBLANK(H77),0,3)","v":0},{"$f":"IF(ISBLANK(I77),0,5)","v":0}]
[null,null,null,"○","Pre- and post-test counselling is provided ",null,null,null,null,null,null,0,0,0]
[null,null,null,"○","Treatment is given immediately, supply is uninterrupted",null,null,null,null,null,null,0,0,0]
[null,null,null,"○","Individuals with HIV are given linkage  to care and support networks after diagnosis ",null,null,null,null,null,null,0,0,0]
[null,null,null,"○","Access to services are equitably distributed across community and all AGYW",null,null,null,null,null,null,0,0,0]
[null,null,null,"○","Interventions to ensure adherence are in place for AGYW living with HIV",null,null,null,null,null,null,0,0,0]
[null,null,null,"○","Regular monitoring of care attendance among AGYW living with HIV",null,null,null,null,null,null,0,0,0]
[null,null,null,"○","Linkages to prevention, treatment for co-morbidities provided",null,null,null,null,null,null,0,0,0]
[null,null,null,"○","Viral load and CD4 tests available and accessible for AGYW living with HIV",null,null,null,null,null,null,0,0,0]
[null,null,null,"○","Self-testing options are available and widely distributed ",null,null,null,null,null,null,0,0,0]
[null,null,null,"○","Supported with other HIV financing",null,null,null,null,null,null,0,0,0]
[null,null,"PEP","AGYW who were victims of sexual assault and exposed to HIV have access to comprehensive GBV services & post rape care, which:  ",null,null,null,null,null,{"$f":"IFERROR(O88,\"-\")","v":"-"},null,null,null,null,{"$f":"IFERROR(ROUND(AVERAGEIF(L89:N94,\"<>0\",L89:N94),0),\"-\")","v":"-"}]
[null,null,null,"○","Are integrated into existing health care services ",null,null,null,null,null,null,{"$f":"IF(ISBLANK(G89),0,1)","v":0},{"$f":"IF(ISBLANK(H89),0,3)","v":0},{"$f":"IF(ISBLANK(I89),0,5)","v":0}]
[null,null,null,"○","Are provided by health care professionals who were trained to offer support to women who have experienced GBV",null,null,null,null,null,null,0,0,0]
[null,null,null,"○","Include first line support from trained health care providers (empathetic listening, non-judgemental attitude, privacy, confidentiality, and linkage to other services)",null,null,null,null,null,null,0,0,0]
[null,null,null,"○","Include emergency contraception, sexually transmitted infection prophylaxis including PEP (within 72 hours) and linkage to support, counselling, and other interventions where appropriate as determined by a complete history",null,null,null,null,null,null,0,0,0]
[null,null,null,"○","Community-led/based GBV centres are available and actively make referrals",null,null,null,null,null,null,0,0,0]
[null,null,null,"○","Supported with other HIV financing",null,null,null,null,null,null,0,0,0]
[null,null,"Prevention of vertical transmission of HIV as part of maternal health ","Women (including AGYW) have access to comprehensive antenatal care (ANC) which includes the prevention of mother-to-child transmission of HIV (PMTCT): ",null,null,null,null,null,{"$f":"IFERROR(O95,\"-\")","v":"-"},null,null,null,null,{"$f":"IFERROR(ROUND(AVERAGEIF(L96:N100,\"<>0\",L96:N100),0),\"-\")","v":"-"}]
[null,null,null,"○","HIV positive pregnant women have access to appropriate information, treatment, and care to prevent HIV transmission from mother-to-child",null,null,null,null,null,null,{"$f":"IF(ISBLANK(G96),0,1)","v":0},{"$f":"IF(ISBLANK(H96),0,3)","v":0},{"$f":"IF(ISBLANK(I96),0,5)","v":0}]
[null,null,null,"○","Regular repeat testing for HIV negative pregnant women is provided",null,null,null,null,null,null,0,0,0]
[null,null,null,"○","High risk HIV negative pregnant women have access to PrEP",null,null,null,null,null,null,0,0,0]
[null,null,null,"○","Information is provided to serodiscordant couples who wish to conceive ",null,null,null,null,null,null,0,0,0]
[null,null,null,"○","Supported with other HIV financing",null,null,null,null,null,null,0,0,0]
[null,null,"Action to address HIV related rights, stigma, and discrimination","Existing policies and policy change advocacy are conducive to improving HIV programme delivery and outcomes for HIV prevention",null,null,null,null,null,{"$f":"IFERROR(O101,\"-\")","v":"-"},null,null,null,null,{"$f":"IFERROR(ROUND(AVERAGEIF(L102:N107,\"<>0\",L102:N107),0),\"-\")","v":"-"}]
[null,null,null,"○","Privacy, confidentiality and non discrimination are clearly communicated and guaranteed for AGYW accessing services",null,null,null,null,null,null,{"$f":"IF(ISBLANK(G102),0,1)","v":0},{"$f":"IF(ISBLANK(H102),0,3)","v":0},{"$f":"IF(ISBLANK(I102),0,5)","v":0}]
[null,null,null,"○","Age-related barriers to access services have been addressed and removed",null,null,null,null,null,null,0,0,0]
[null,null,null,"○","Consensual sexual activity of adolescents is decriminalised",null,null,null,null,null,null,0,0,0]
[null,null,null,"○","Policy and legal barriers for key populations (including young sex workers, adolescents exploited into sex work, young men who have sex with men, transgender persons and people who inject drugs)have been addressed and removed",null,null,null,null,null,null,0,0,0]
[null,null,null,"○","Civil society and community partners are actively engaged and involved in actions to address HIV related rights, stigma and discrimination",null,null,null,null,null,null,0,0,0]
[null,null,null,"○","Supported with other HIV financing",null,null,null,null,null,null,0,0,0]
[null,null,"Male and female condoms and lubricants ","All AGYW and their sex partners have access to condoms & lubricants, are knowledgeable on where to access, and how to use them:",null,null,null,null,null,{"$f":"IFERROR(O108,\"-\")","v":"-"},null,null,null,null,{"$f":"IFERROR(ROUND(AVERAGEIF(L109:N116,\"<>0\",L109:N116),0),\"-\")","v":"-"}]
[null,null,null,"○","Condoms are available consistently and in sufficient quantity",null,null,null,null,null,null,{"$f":"IF(ISBLANK(G109),0,1)","v":0},{"$f":"IF(ISBLANK(H109),0,3)","v":0},{"$f":"IF(ISBLANK(I109),0,5)","v":0}]
[null,null,null,"○","Lubricants are available consistently and in sufficient quantity",null,null,null,null,null,null,0,0,0]
[null,null,null,"○","Condoms are widely distributed and easily accessible at schools/higher learning institutions and in community settings",null,null,null,null,null,null,0,0,0]
[null,null,null,"○","Demonstration workshops are regularly scheduled in schools and higher learning institutions, to complement distribution & demand creation activities",null,null,null,null,null,null,0,0,0]
[null,null,null,"○","Condoms are distributed as part of mobile adolescent friendly services and handed out in bulk packs ",null,null,null,null,null,null,0,0,0]
[null,null,null,"○","Condoms are provided alongside interpersonal communication material",null,null,null,null,null,null,0,0,0]
[null,null,null,"○","Condoms are provided alongside all STI & SRH services",null,null,null,null,null,null,0,0,0]
[null,null,null,"○","Supported with other HIV prevention financing",null,null,null,null,null,null,0,0,0]
[null,null,"Voluntary medical male circumcisions for men in relevant priority countries","Voluntary medical male circumcision (VMMC) programming is developmentally appropriate and age-differentiated guidelines are available for adolescent and adult males: \n",null,null,null,null,null,{"$f":"IFERROR(O117,\"-\")","v":"-"},null,null,null,null,{"$f":"IFERROR(ROUND(AVERAGEIF(L118:N119,\"<>0\",L118:N119),0),\"-\")","v":"-"}]
[null,null,null,"○","VMMC programme includes linkages to risk assessments and referrals to SRH and HIV prevention and testing which are age differentiated",null,null,null,null,null,null,{"$f":"IF(ISBLANK(G118),0,1)","v":0},{"$f":"IF(ISBLANK(H118),0,3)","v":0},{"$f":"IF(ISBLANK(I118),0,5)","v":0}]
[null,null,null,"○","Supported with other HIV prevention financing",null,null,null,null,null,null,0,0,0]
[null,null,"Basic national HIV information, risk reduction communications ","Social and behaviour change communication(SBCC) programming and activities are included",null,null,null,null,null,{"$f":"IFERROR(O120,\"-\")","v":"-"},null,null,null,null,{"$f":"IFERROR(ROUND(AVERAGEIF(L121:N132,\"<>0\",L121:N132),0),\"-\")","v":"-"}]
[null,null,null,"○","Involve both males and females",null,null,null,null,null,null,{"$f":"IF(ISBLANK(G121),0,1)","v":0},{"$f":"IF(ISBLANK(H121),0,3)","v":0},{"$f":"IF(ISBLANK(I121),0,5)","v":0}]
[null,null,null,"○","Include innovative multimedia and new media approaches (including radio and television approaches)",null,null,null,null,null,null,0,0,0]
[null,null,null,"○","Are evidence-informed and have a theory of change",null,null,null,null,null,null,0,0,0]
[null,null,null,"○","Have well-developed information and education communication (IEC) material that is widely disseminated in targeted locations",null,null,null,null,null,null,0,0,0]
[null,null,null,"○","Have well-defined curricula, strong community participation, and gender-transformative approaches that address gender inequalities ",null,null,null,null,null,null,0,0,0]
[null,null,null,"○","Have clear targets and are evaluated quantitatively and qualitatively ",null,null,null,null,null,null,0,0,0]
[null,null,null,"○","Are well planned for and adequately budgeted",null,null,null,null,null,null,0,0,0]
[null,null,null,"○","Are evaluated regularly",null,null,null,null,null,null,0,0,0]
[null,null,null,"○","AGYW have been involved in the design and the testing of the interventions",null,null,null,null,null,null,0,0,0]
[null,null,null,"○","The organisations and individuals implementing these interventions are experienced and trained in SBCC",null,null,null,null,null,null,0,0,0]
[null,null,null,"○","Social and behaviour change communication interventions are included in monitoring and evaluation plans and activities",null,null,null,null,null,null,0,0,0]
[null,null,null,"○","Supported with other HIV prevention financing",null,null,null,null,null,null,0,0,0]
[null,null,"Comprehensive HIV prevention packages for key and vulnerable youth","National strategies & HIV prevention programmes for key population groups consider and address specific needs and strategies for young key and vulnerable populations, including:",null,null,null,null,null,{"$f":"IFERROR(O133,\"-\")","v":"-"},null,null,null,null,{"$f":"IFERROR(ROUND(AVERAGEIF(L134:N139,\"<>0\",L134:N138),0),\"-\")","v":"-"}]
[null,null,null,"○","Young women who sell sex",null,null,null,null,null,null,{"$f":"IF(ISBLANK(G134),0,1)","v":0},{"$f":"IF(ISBLANK(H134),0,3)","v":0},{"$f":"IF(ISBLANK(I134),0,5)","v":0}]
[null,null,null,"○","Sexually exploited adolescents",null,null,null,null,null,null,0,0,0]
[null,null,null,"○","Transgender youth",null,null,null,null,null,null,0,0,0]
[null,null,null,"○","Incarcerated youth",null,null,null,null,null,null,0,0,0]
[null,null,null,"○","Young people who inject drugs",null,null,null,null,null,null,0,0,0]
[null,null,null,"○","Supported with other HIV prevention financing",null,null,null,null,null,null,0,0,0]
[null,null,"COVID 19","○","Programs  are in place to encourage and track COVID-19 vaccine uptake among AGYW",null,null,null,null,{"$f":"IFERROR(O140,\"-\")","v":"-"},null,0,0,0,{"$f":"IFERROR(ROUND(AVERAGEIF(L140:N141,\"<>0\",L140:N141),0),\"-\")","v":"-"}]
[null,null,null,"○","Continued messaging and safe access to non-facility-based service delivery models (e.g. community-based, home-based, telehealth) during COVID-19 peaks to avoid service disruption",null,null,null,null,null,null,0,0,0]
[null,null,null,null,null,null,null,null,null,null,null,null,{"$f":"COUNTIF(O6:O141,\"-\")","v":18}]
[null,null,null,null,null,null,null,null,null,null,null,null,{"$f":"COUNTIF(O6:O141,\">0\")","v":0}]
[null,null,null,null,null,null,null,null,null,null,null,"Sheet Completion",{"$f":"M143/(M142+M143)","v":0},{"$f":"1-M144","v":1}]

{"sheet":"MODERATE Incidence","index":7,"n_rows":61,"n_cols":15,"rows_kept":61,"cut":false,"hidden":false,"merged":[[28,3,28,4],[32,3,32,4],[35,3,35,4],[20,3,20,4],[24,3,24,4],[20,2,23,2],[24,2,27,2],[28,2,31,2],[32,2,34,2],[35,2,36,2],[37,2,39,2],[40,2,42,2],[51,3,51,4],[53,3,53,4],[43,3,43,4],[43,2,45,2],[46,2,48,2],[49,2,50,2],[51,2,52,2],[53,2,54,2],[53,9,54,9],[55,3,55,4],[56,3,56,4],[46,3,46,4],[49,3,49,4],[1,2,1,9],[3,3,3,4],[4,2,4,10],[5,2,8,2],[5,3,5,4],[5,5,5,8],[5,9,8,9],[9,5,9,8],[9,2,12,2],[9,3,9,4],[9,9,12,9],[13,2,16,2],[13,3,13,4],[13,5,13,8],[17,2,19,2],[17,3,17,4],[37,3,37,4],[37,9,39,9],[40,9,42,9],[40,3,40,4],[43,9,45,9],[46,9,48,9],[49,9,50,9],[51,9,52,9],[13,9,16,9],[17,9,19,9],[20,9,23,9],[24,9,27,9],[28,9,31,9],[32,9,34,9],[35,9,36,9]]}
[]
[null,null,"Programme Implementation"]
[]
[null,null,"Element","Criteria",null,"N/A","Absent","Present but not optimal","Present and working well","Average for element","Comments (if applicable)","Absent","Present","Optimal","Average"]
[null,null,"HIV prevention packages for AGYW in MODERATE incidence locations"]
[null,null,"HIV/STI risk assessment profile","HIV/STI risk assessment profiling is offered: ",null,null,null,null,null,{"$f":"IFERROR(O6,\"-\")","v":"-"},null,null,null,null,{"$f":"IFERROR(ROUND(AVERAGEIF(L7:N9,\"<>0\",L7:N9),0),\"-\")","v":"-"}]
[null,null,null,"○","Routinely",null,null,null,null,null,null,{"$f":"IF(ISBLANK(G7),0,1)","v":0},{"$f":"IF(ISBLANK(H7),0,3)","v":0},{"$f":"IF(ISBLANK(I7),0,5)","v":0}]
[null,null,null,"○","At all health and community based platforms (service delivery points and facilities)",null,null,null,null,null,null,0,0,0]
[null,null,null,null,"Using HIV prevention funding for AGYW ",null,null,null,null,null,null,0,0,0]
[null,null,"HIV risk reduction counselling and testing","HIV risk reduction counselling and testing are offered:",null,null,null,null,null,{"$f":"IFERROR(O10,\"-\")","v":"-"},null,null,null,null,{"$f":"IFERROR(ROUND(AVERAGEIF(L11:N13,\"<>0\",L11:N13),0),\"-\")","v":"-"}]
[null,null,null,"○","Routinely",null,null,null,null,null,null,{"$f":"IF(ISBLANK(G11),0,1)","v":0},{"$f":"IF(ISBLANK(H11),0,3)","v":0},{"$f":"IF(ISBLANK(I11),0,5)","v":0}]
[null,null,null,"○","At all health and community based platforms (service delivery points and facilities)",null,null,null,null,null,null,0,0,0]
[null,null,null,null,"Using HIV prevention funding for AGYW ",null,null,null,null,null,null,0,0,0]
[null,null,"Active provider-initiated condom and lubricant distribution and promotion","Active provider-initiated condom and lubricant distribution and promotion are offered: ",null,null,null,null,null,{"$f":"IFERROR(O14,\"-\")","v":"-"},null,null,null,null,{"$f":"IFERROR(ROUND(AVERAGEIF(L15:N17,\"<>0\",L15:N17),0),\"-\")","v":"-"}]
[null,null,null,"○","Routinely",null,null,null,null,null,null,{"$f":"IF(ISBLANK(G15),0,1)","v":0},{"$f":"IF(ISBLANK(H15),0,3)","v":0},{"$f":"IF(ISBLANK(I15),0,5)","v":0}]
[null,null,null,"○","At all health and community based platforms (service delivery points and facilities)",null,null,null,null,null,null,0,0,0]
[null,null,null,null,"Using HIV prevention funding for AGYW ",null,null,null,null,null,null,0,0,0]
[null,null,"STI diagnosis (including as indicator for HIV risk) and treatment ","STI diagnosis (including as indicator for HIV risk) and treatment are available: ",null,null,null,null,null,{"$f":"IFERROR(O18,\"-\")","v":"-"},null,null,null,null,{"$f":"IFERROR(ROUND(AVERAGEIF(L19:N20,\"<>0\",L19:N20),0),\"-\")","v":"-"}]
[null,null,null,"○","At all health and community based platforms (service delivery points and facilities), as needed",null,null,null,null,null,null,{"$f":"IF(ISBLANK(G19),0,1)","v":0},{"$f":"IF(ISBLANK(H19),0,3)","v":0},{"$f":"IF(ISBLANK(I19),0,5)","v":0}]
[null,null,null,null,"Using other (non-AGYW prevention) funding",null,null,null,null,null,null,0,0,0]
[null,null,"HIV & STI service integration in family planning","HIV & STI service integration into Family Planning is available:",null,null,null,null,null,{"$f":"IFERROR(O21,\"-\")","v":"-"},null,null,null,null,{"$f":"IFERROR(ROUND(AVERAGEIF(L22:N24,\"<>0\",L22:N24),0),\"-\")","v":"-"}]
[null,null,null,"○","At selected sites",null,null,null,null,null,null,{"$f":"IF(ISBLANK(G22),0,1)","v":0},{"$f":"IF(ISBLANK(H22),0,3)","v":0},{"$f":"IF(ISBLANK(I22),0,5)","v":0}]
[null,null,null,"○","As a focused/targeted offering",null,null,null,null,null,null,0,0,0]
[null,null,null,null,"Using HIV prevention funding for AGYW ",null,null,null,null,null,null,0,0,0]
[null,null,"Male partner testing (invitation letter + self test) with antiretroviral treatment referral","Male partner testing & antiretroviral treatment referral services are available:",null,null,null,null,null,{"$f":"IFERROR(O25,\"-\")","v":"-"},null,null,null,null,{"$f":"IFERROR(ROUND(AVERAGEIF(L26:N28,\"<>0\",L26:N28),0),\"-\")","v":"-"}]
[null,null,null,"○","At selected sites",null,null,null,null,null,null,{"$f":"IF(ISBLANK(G26),0,1)","v":0},{"$f":"IF(ISBLANK(H26),0,3)","v":0},{"$f":"IF(ISBLANK(I26),0,5)","v":0}]
[null,null,null,"○","As a focused/targeted offering",null,null,null,null,null,null,0,0,0]
[null,null,null,null,"Using HIV prevention funding for AGYW ",null,null,null,null,null,null,0,0,0]
[null,null,"PrEP services","PrEP services are available:",null,null,null,null,null,{"$f":"IFERROR(O29,\"-\")","v":"-"},null,null,null,null,{"$f":"IFERROR(ROUND(AVERAGEIF(L30:N32,\"<>0\",L30:N32),0),\"-\")","v":"-"}]
[null,null,null,"○","At selected sites",null,null,null,null,null,null,{"$f":"IF(ISBLANK(G30),0,1)","v":0},{"$f":"IF(ISBLANK(H30),0,3)","v":0},{"$f":"IF(ISBLANK(I30),0,5)","v":0}]
[null,null,null,"○","As a focused/targeted offering",null,null,null,null,null,null,0,0,0]
[null,null,null,null,"Using HIV prevention funding for AGYW ",null,null,null,null,null,null,0,0,0]
[null,null,"Dedicated school-based HIV prevention campaigns (knowledge, risk perception, methods, skills, gender based violence) linked to services","School-based HIV prevention campaigns and linkage to services are implemented:",null,null,null,null,null,{"$f":"IFERROR(O33,\"-\")","v":"-"},null,null,null,null,{"$f":"IFERROR(ROUND(AVERAGEIF(L34:N35,\"<>0\",L34:N35),0),\"-\")","v":"-"}]
[null,null,null,"○","At selected schools and tertiary institutions",null,null,null,null,null,null,{"$f":"IF(ISBLANK(G34),0,1)","v":0},{"$f":"IF(ISBLANK(H34),0,3)","v":0},{"$f":"IF(ISBLANK(I34),0,5)","v":0}]
[null,null,null,null,"Using HIV prevention funding for AGYW ",null,null,null,null,null,null,0,0,0]
[null,null,"Accelerated introduction of comprehensive sexuality education ","Introduction of Comprehensive Sexuality Education is accelerated:",null,null,null,null,null,{"$f":"IFERROR(O36,\"-\")","v":"-"},null,null,null,null,{"$f":"IFERROR(ROUND(AVERAGEIF(L37:N37,\"<>0\",L37:N37),0),\"-\")","v":"-"}]
[null,null,null,null,"Using other (non-AGYW prevention) funding",null,null,null,null,null,null,{"$f":"IF(ISBLANK(G37),0,1)","v":0},{"$f":"IF(ISBLANK(H37),0,3)","v":0},{"$f":"IF(ISBLANK(I37),0,5)","v":0}]
[null,null,"Community mobilization around basic HIV prevention knowledge, risk perception and related social norms","Community mobilization around basic HIV prevention knowledge, risk perception and related social norms is implemented:",null,null,null,null,null,{"$f":"IFERROR(O38,\"-\")","v":"-"},null,null,null,null,{"$f":"IFERROR(ROUND(AVERAGEIF(L39:N40,\"<>0\",L39:N40),0),\"-\")","v":"-"}]
[null,null,null,"○","In selected communities",null,null,null,null,null,null,{"$f":"IF(ISBLANK(G39),0,1)","v":0},{"$f":"IF(ISBLANK(H39),0,3)","v":0},{"$f":"IF(ISBLANK(I39),0,5)","v":0}]
[null,null,null,null,"Using HIV prevention funding for AGYW ",null,null,null,null,null,null,0,0,0]
[null,null,"Community-based demand generation and outreach for HIV prevention services","Community-based demand generation and outreach for HIV prevention services (including condoms, self-testing, referrals…) is implemented:",null,null,null,null,null,{"$f":"IFERROR(O41,\"-\")","v":"-"},null,null,null,null,{"$f":"IFERROR(ROUND(AVERAGEIF(L42:N43,\"<>0\",L42:N43),0),\"-\")","v":"-"}]
[null,null,null,"○","Targeting all AGYW and men age 20-39 at high risk",null,null,null,null,null,null,{"$f":"IF(ISBLANK(G42),0,1)","v":0},{"$f":"IF(ISBLANK(H42),0,3)","v":0},{"$f":"IF(ISBLANK(I42),0,5)","v":0}]
[null,null,null,null,"Using HIV prevention funding for AGYW ",null,null,null,null,null,null,0,0,0]
[null,null,"Active PrEP demand generation","Active PrEP demand generation activities are implemented via community platforms (NGOs, CSOs):",null,null,null,null,null,{"$f":"IFERROR(O44,\"-\")","v":"-"},null,null,null,null,{"$f":"IFERROR(ROUND(AVERAGEIF(L45:N46,\"<>0\",L45:N46),0),\"-\")","v":"-"}]
[null,null,null,"○","Including AGYW as part of key populations",null,null,null,null,null,null,{"$f":"IF(ISBLANK(G45),0,1)","v":0},{"$f":"IF(ISBLANK(H45),0,3)","v":0},{"$f":"IF(ISBLANK(I45),0,5)","v":0}]
[null,null,null,null,"Using HIV prevention funding for AGYW ",null,null,null,null,null,null,0,0,0]
[null,null,"Structured interpersonal communication outreach (e.g. SASA! etc.)","Structured IPC outreach activities are implemented via community platforms (NGOs, CSOs) is implemented:",null,null,null,null,null,{"$f":"IFERROR(O47,\"-\")","v":"-"},null,null,null,null,{"$f":"IFERROR(ROUND(AVERAGEIF(L48:N49,\"<>0\",L48:N49),0),\"-\")","v":"-"}]
[null,null,null,"○","In selected communities",null,null,null,null,null,null,{"$f":"IF(ISBLANK(G48),0,1)","v":0},{"$f":"IF(ISBLANK(H48),0,3)","v":0},{"$f":"IF(ISBLANK(I48),0,5)","v":0}]
[null,null,null,null,"Using HIV prevention funding for AGYW ",null,null,null,null,null,null,0,0,0]
[null,null,"Cash transfers, incentives, economic empowerment","Cash transfers, incentives, economic empowerment initiatives are available:",null,null,null,null,null,{"$f":"IFERROR(O50,\"-\")","v":"-"},null,null,null,null,{"$f":"IFERROR(ROUND(AVERAGEIF(L51:N51,\"<>0\",L51:N51),0),\"-\")","v":"-"}]
[null,null,null,null,"Using other (non-AGYW prevention) funding",null,null,null,null,null,null,{"$f":"IF(ISBLANK(G51),0,1)","v":0},{"$f":"IF(ISBLANK(H51),0,3)","v":0},{"$f":"IF(ISBLANK(I51),0,5)","v":0}]
[null,null,"Social asset-building, safe spaces, parenting programmes, mentoring","Social asset-building, safe spaces, parenting programmes, mentoring are available:",null,null,null,null,null,{"$f":"IFERROR(O52,\"-\")","v":"-"},null,null,null,null,{"$f":"IFERROR(ROUND(AVERAGEIF(L53:N53,\"<>0\",L53:N53),0),\"-\")","v":"-"}]
[null,null,null,null,"Using other (non-AGYW prevention) funding",null,null,null,null,null,null,{"$f":"IF(ISBLANK(G53),0,1)","v":0},{"$f":"IF(ISBLANK(H53),0,3)","v":0},{"$f":"IF(ISBLANK(I53),0,5)","v":0}]
[null,null,"Keep girls in-school / education assistance","Keep girls in school / education assistance programmes are available:",null,null,null,null,null,{"$f":"IFERROR(O54,\"-\")","v":"-"},null,null,null,null,{"$f":"IFERROR(ROUND(AVERAGEIF(L55:N55,\"<>0\",L55:N55),0),\"-\")","v":"-"}]
[null,null,null,null,"Using other (non-AGYW prevention) funding",null,null,null,null,null,null,{"$f":"IF(ISBLANK(G55),0,1)","v":0},{"$f":"IF(ISBLANK(H55),0,3)","v":0},{"$f":"IF(ISBLANK(I55),0,5)","v":0}]
[null,null,"Local AIDS Office leads regular review & problem-solving","Local AIDS Office leads regular review and problem-solving (as recommended)",null,null,null,null,null,{"$f":"IFERROR(O56,\"-\")","v":"-"},null,0,0,0,{"$f":"IFERROR(ROUND(AVERAGEIF(L56:N56,\"<>0\",L56:N56),0),\"-\")","v":"-"}]
[null,null,"Full-time AGYW lead within local AIDS Office","Full-time AGYW lead is present within the local AIDS office (optional)",null,null,null,null,null,"-",null,0,0,0,"-"]
[]
[null,null,null,null,null,null,null,null,null,null,null,null,{"$f":"COUNTIF(O6:O57,\"-\")","v":18}]
[null,null,null,null,null,null,null,null,null,null,null,null,{"$f":"COUNTIF(O6:O57,\">0\")","v":0}]
[null,null,null,null,null,null,null,null,null,null,null,"Sheet Completion",{"$f":"M60/(M59+M60)","v":0},{"$f":"1-M61","v":1}]

{"sheet":"HIGH Incidence","index":8,"n_rows":79,"n_cols":15,"rows_kept":79,"cut":false,"hidden":false,"merged":[[61,2,64,2],[65,2,68,2],[38,9,40,9],[41,3,41,4],[41,9,43,9],[47,2,49,2],[47,9,49,9],[38,3,38,4],[54,3,54,4],[9,2,12,2],[13,2,17,2],[18,2,22,2],[23,2,27,2],[50,2,53,2],[28,2,32,2],[33,2,37,2],[18,3,18,4],[9,3,9,4],[23,3,23,4],[54,2,56,2],[57,2,60,2],[54,9,56,9],[57,3,57,4],[57,9,60,9],[61,9,64,9],[61,3,61,4],[65,9,68,9],[69,3,69,4],[70,3,70,4],[65,3,65,4],[1,2,1,9],[3,3,3,4],[4,2,4,10],[5,3,5,4],[5,9,8,9],[5,2,8,2],[18,9,22,9],[9,9,12,9],[13,3,13,4],[13,9,17,9],[23,9,27,9],[28,3,28,4],[28,9,32,9],[50,9,53,9],[33,9,37,9],[38,2,40,2],[41,2,43,2],[44,2,46,2],[44,3,44,4],[44,9,46,9],[33,3,33,4],[47,3,47,4],[50,3,50,4]]}
[]
[null,null,"Programme Implementation"]
[]
[null,null,"Element","Criteria",null,"N/A","Absent","Present but not optimal","Present and working well","Average for element","Comments (if applicable)","Absent","Present","Optimal","Average"]
[null,null,"HIV prevention packages for AGYW in HIGH incidence locations"]
[null,null,"HIV/STI risk assessment profile","HIV/STI risk assessment profiling is offered: ",null,null,null,null,null,{"$f":"IFERROR(O6,\"-\")","v":"-"},null,null,null,null,{"$f":"IFERROR(ROUND(AVERAGEIF(L7:N9,\"<>0\",L7:N9),0),\"-\")","v":"-"}]
[null,null,null,"○","Routinely",null,null,null,null,null,null,{"$f":"IF(ISBLANK(G7),0,1)","v":0},{"$f":"IF(ISBLANK(H7),0,3)","v":0},{"$f":"IF(ISBLANK(I7),0,5)","v":0}]
[null,null,null,"○","At all health and community based platforms (service delivery points and facilities)",null,null,null,null,null,null,0,0,0]
[null,null,null,null,"Using HIV prevention funding for AGYW ",null,null,null,null,null,null,0,0,0]
[null,null,"HIV risk reduction counselling and testing","HIV risk reduction counselling and testing are offered:",null,null,null,null,null,{"$f":"IFERROR(O10,\"-\")","v":"-"},null,null,null,null,{"$f":"IFERROR(ROUND(AVERAGEIF(L11:N13,\"<>0\",L11:N13),0),\"-\")","v":"-"}]
[null,null,null,"○","Routinely",null,null,null,null,null,null,{"$f":"IF(ISBLANK(G11),0,1)","v":0},{"$f":"IF(ISBLANK(H11),0,3)","v":0},{"$f":"IF(ISBLANK(I11),0,5)","v":0}]
[null,null,null,"○","At all health and community based platforms (service delivery points and facilities)",null,null,null,null,null,null,0,0,0]
[null,null,null,null,"Using HIV prevention funding for AGYW ",null,null,null,null,null,null,0,0,0]
[null,null,"Active provider-initiated condom and lubricant distribution and promotion","Active provider-initiated condom and lubricant distribution and promotion are offered: ",null,null,null,null,null,{"$f":"IFERROR(O14,\"-\")","v":"-"},null,null,null,null,{"$f":"IFERROR(ROUND(AVERAGEIF(L15:N18,\"<>0\",L15:N18),0),\"-\")","v":"-"}]
[null,null,null,"○","Routinely",null,null,null,null,null,null,{"$f":"IF(ISBLANK(G15),0,1)","v":0},{"$f":"IF(ISBLANK(H15),0,3)","v":0},{"$f":"IF(ISBLANK(I15),0,5)","v":0}]
[null,null,null,"○","At all health and community based platforms (service delivery points and facilities)",null,null,null,null,null,null,0,0,0]
[null,null,null,"○","To all AGYW at high risk",null,null,null,null,null,null,0,0,0]
[null,null,null,null,"Using HIV prevention funding for AGYW ",null,null,null,null,null,null,0,0,0]
[null,null,"STI diagnosis (including as indicator for HIV risk) and treatment ","STI diagnosis (including as indicator for HIV risk) and treatment are offered: ",null,null,null,null,null,{"$f":"IFERROR(O19,\"-\")","v":"-"},null,null,null,null,{"$f":"IFERROR(ROUND(AVERAGEIF(L20:N23,\"<>0\",L20:N23),0),\"-\")","v":"-"}]
[null,null,null,"○","Routinely",null,null,null,null,null,null,{"$f":"IF(ISBLANK(G20),0,1)","v":0},{"$f":"IF(ISBLANK(H20),0,3)","v":0},{"$f":"IF(ISBLANK(I20),0,5)","v":0}]
[null,null,null,"○","At all health and community based platforms (service delivery points and facilities)",null,null,null,null,null,null,0,0,0]
[null,null,null,"○","To all AGYW at high risk",null,null,null,null,null,null,0,0,0]
[null,null,null,null,"Using HIV prevention funding for AGYW ",null,null,null,null,null,null,0,0,0]
[null,null,"HIV & STI service integration in family planning ","HIV & STI service integration into Family Planning is available:",null,null,null,null,null,{"$f":"IFERROR(O24,\"-\")","v":"-"},null,null,null,null,{"$f":"IFERROR(ROUND(AVERAGEIF(L25:N28,\"<>0\",L25:N28),0),\"-\")","v":"-"}]
[null,null,null,"○","Routinely",null,null,null,null,null,null,{"$f":"IF(ISBLANK(G25),0,1)","v":0},{"$f":"IF(ISBLANK(H25),0,3)","v":0},{"$f":"IF(ISBLANK(I25),0,5)","v":0}]
[null,null,null,"○","At all health and community based platforms (service delivery points and facilities)",null,null,null,null,null,null,0,0,0]
[null,null,null,"○","To all AGYW at high risk",null,null,null,null,null,null,0,0,0]
[null,null,null,null,"Using HIV prevention funding for AGYW ",null,null,null,null,null,null,0,0,0]
[null,null,"Male partner testing (invitation letter + self test) with antiretroviral treatment referral ","Male partner testing & antiretroviral treatment referral services are available:",null,null,null,null,null,{"$f":"IFERROR(O29,\"-\")","v":"-"},null,null,null,null,{"$f":"IFERROR(ROUND(AVERAGEIF(L30:N33,\"<>0\",L30:N33),0),\"-\")","v":"-"}]
[null,null,null,"○","Routinely",null,null,null,null,null,null,{"$f":"IF(ISBLANK(G30),0,1)","v":0},{"$f":"IF(ISBLANK(H30),0,3)","v":0},{"$f":"IF(ISBLANK(I30),0,5)","v":0}]
[null,null,null,"○","At all health and community based platforms (service delivery points and facilities)",null,null,null,null,null,null,0,0,0]
[null,null,null,"○","To all AGYW at high risk",null,null,null,null,null,null,0,0,0]
[null,null,null,null,"Using HIV prevention funding for AGYW ",null,null,null,null,null,null,0,0,0]
[null,null,"PrEP services","PrEP services are available:",null,null,null,null,null,{"$f":"IFERROR(O34,\"-\")","v":"-"},null,null,null,null,{"$f":"IFERROR(ROUND(AVERAGEIF(L35:N38,\"<>0\",L35:N38),0),\"-\")","v":"-"}]
[null,null,null,"○","Routinely",null,null,null,null,null,null,{"$f":"IF(ISBLANK(G35),0,1)","v":0},{"$f":"IF(ISBLANK(H35),0,3)","v":0},{"$f":"IF(ISBLANK(I35),0,5)","v":0}]
[null,null,null,"○","At all health and community based platforms (service delivery points and facilities)",null,null,null,null,null,null,0,0,0]
[null,null,null,"○","To all AGYW at high risk",null,null,null,null,null,null,0,0,0]
[null,null,null,null,"Using HIV prevention funding for AGYW ",null,null,null,null,null,null,0,0,0]
[null,null,"Dedicated school-based HIV prevention campaigns (knowledge, risk perception, methods, skills, gender based violence) linked to services","School-based HIV prevention campaigns and linkage to services are implemented:",null,null,null,null,null,{"$f":"IFERROR(O39,\"-\")","v":"-"},null,null,null,null,{"$f":"IFERROR(ROUND(AVERAGEIF(L40:N41,\"<>0\",L40:N41),0),\"-\")","v":"-"}]
[null,null,null,"○","At all schools and tertiary institutions/universities",null,null,null,null,null,null,{"$f":"IF(ISBLANK(G40),0,1)","v":0},{"$f":"IF(ISBLANK(H40),0,3)","v":0},{"$f":"IF(ISBLANK(I40),0,5)","v":0}]
[null,null,null,null,"Using HIV prevention funding for AGYW ",null,null,null,null,null,null,0,0,0]
[null,null,"Accelerated introduction of CSE","Introduction of Comprehensive Sexuality Education is accelerated:",null,null,null,null,null,{"$f":"IFERROR(O42,\"-\")","v":"-"},null,null,null,null,{"$f":"IFERROR(ROUND(AVERAGEIF(L43:N44,\"<>0\",L43:N44),0),\"-\")","v":"-"}]
[null,null,null,"○","At all schools and tertiary institutions/universities",null,null,null,null,null,null,{"$f":"IF(ISBLANK(G43),0,1)","v":0},{"$f":"IF(ISBLANK(H43),0,3)","v":0},{"$f":"IF(ISBLANK(I43),0,5)","v":0}]
[null,null,null,null,"Using HIV prevention funding for AGYW ",null,null,null,null,null,null,0,0,0]
[null,null,"Community mobilization around basic HIV prevention knowledge, risk perception and related social norms","Community mobilization around basic HIV prevention knowledge, risk perception and related social norms is implemented:",null,null,null,null,null,{"$f":"IFERROR(O45,\"-\")","v":"-"},null,null,null,null,{"$f":"IFERROR(ROUND(AVERAGEIF(L46:N47,\"<>0\",L46:N47),0),\"-\")","v":"-"}]
[null,null,null,"○","In all communities",null,null,null,null,null,null,{"$f":"IF(ISBLANK(G46),0,1)","v":0},{"$f":"IF(ISBLANK(H46),0,3)","v":0},{"$f":"IF(ISBLANK(I46),0,5)","v":0}]
[null,null,null,null,"Using HIV prevention funding for AGYW ",null,null,null,null,null,null,0,0,0]
[null,null,"Community-based demand generation and outreach for HIV prevention services","Community-based demand generation and outreach for HIV prevention services (including condoms, self-testing, referrals…) is implemented:",null,null,null,null,null,{"$f":"IFERROR(O48,\"-\")","v":"-"},null,null,null,null,{"$f":"IFERROR(ROUND(AVERAGEIF(L49:N50,\"<>0\",L49:N50),0),\"-\")","v":"-"}]
[null,null,null,"○","Targeting all AGYW and men age 20-39",null,null,null,null,null,null,{"$f":"IF(ISBLANK(G49),0,1)","v":0},{"$f":"IF(ISBLANK(H49),0,3)","v":0},{"$f":"IF(ISBLANK(I49),0,5)","v":0}]
[null,null,null,null,"Using HIV prevention funding for AGYW ",null,null,null,null,null,null,0,0,0]
[null,null,"Active PrEP demand generation","Active PrEP demand generation activities are implemented via community platforms (NGOs, CSOs):",null,null,null,null,null,{"$f":"IFERROR(O51,\"-\")","v":"-"},null,null,null,null,{"$f":"IFERROR(ROUND(AVERAGEIF(L52:N54,\"<>0\",L52:N54),0),\"-\")","v":"-"}]
[null,null,null,"○","Community wide",null,null,null,null,null,null,{"$f":"IF(ISBLANK(G52),0,1)","v":0},{"$f":"IF(ISBLANK(H52),0,3)","v":0},{"$f":"IF(ISBLANK(I52),0,5)","v":0}]
[null,null,null,"○","Targeting all AGYW at high risk",null,null,null,null,null,null,0,0,0]
[null,null,null,null,"Using HIV prevention funding for AGYW ",null,null,null,null,null,null,0,0,0]
[null,null,"Structured interpersonal communication outreach (e.g. SASA! etc.)","Structured IPC outreach activities are implemented via community platforms (NGOs, CSOs) is implemented:",null,null,null,null,null,{"$f":"IFERROR(O55,\"-\")","v":"-"},null,null,null,null,{"$f":"IFERROR(ROUND(AVERAGEIF(L56:N57,\"<>0\",L56:N57),0),\"-\")","v":"-"}]
[null,null,null,"○","In all communities",null,null,null,null,null,null,{"$f":"IF(ISBLANK(G56),0,1)","v":0},{"$f":"IF(ISBLANK(H56),0,3)","v":0},{"$f":"IF(ISBLANK(I56),0,5)","v":0}]
[null,null,null,null,"Using HIV prevention funding for AGYW ",null,null,null,null,null,null,0,0,0]
[null,null,"Cash transfers, incentives, economic empowerment","Cash transfers, incentives, economic empowerment initiatives are available:",null,null,null,null,null,{"$f":"IFERROR(O58,\"-\")","v":"-"},null,null,null,null,{"$f":"IFERROR(ROUND(AVERAGEIF(L59:N61,\"<>0\",L59:N61),0),\"-\")","v":"-"}]
[null,null,null,"○","To AGYW at high risk",null,null,null,null,null,null,{"$f":"IF(ISBLANK(G59),0,1)","v":0},{"$f":"IF(ISBLANK(H59),0,3)","v":0},{"$f":"IF(ISBLANK(I59),0,5)","v":0}]
[null,null,null,null,"Using HIV prevention funding for AGYW ",null,null,null,null,null,null,0,0,0]
[null,null,null,null,"Using other (non-AGYW prevention) funding",null,null,null,null,null,null,0,0,0]
[null,null,"Social asset-building, safe spaces, parenting programmes, mentoring","Social asset-building, safe spaces, parenting programmes, mentoring are available:",null,null,null,null,null,{"$f":"IFERROR(O62,\"-\")","v":"-"},null,null,null,null,{"$f":"IFERROR(ROUND(AVERAGEIF(L63:N65,\"<>0\",L63:N65),0),\"-\")","v":"-"}]
[null,null,null,"○","To AGYW at high risk",null,null,null,null,null,null,{"$f":"IF(ISBLANK(G63),0,1)","v":0},{"$f":"IF(ISBLANK(H63),0,3)","v":0},{"$f":"IF(ISBLANK(I63),0,5)","v":0}]
[null,null,null,null,"Using HIV prevention funding for AGYW ",null,null,null,null,null,null,0,0,0]
[null,null,null,null,"Using other (non-AGYW prevention) funding",null,null,null,null,null,null,0,0,0]
[null,null,"Keep girls in-school / education assistance","Keep girls in school / education assistance programmes are available:",null,null,null,null,null,{"$f":"IFERROR(O66,\"-\")","v":"-"},null,null,null,null,{"$f":"IFERROR(ROUND(AVERAGEIF(L67:N69,\"<>0\",L67:N69),0),\"-\")","v":"-"}]
[null,null,null,"○","To AGYW at high risk",null,null,null,null,null,null,{"$f":"IF(ISBLANK(G67),0,1)","v":0},{"$f":"IF(ISBLANK(H67),0,3)","v":0},{"$f":"IF(ISBLANK(I67),0,5)","v":0}]
[null,null,null,null,"Using HIV prevention funding for AGYW ",null,null,null,null,null,null,0,0,0]
[null,null,null,null,"Using other (non-AGYW prevention) funding",null,null,null,null,null,null,0,0,0]
[null,null,"Local AIDS Office leads regular review & problem-solving","Local AIDS Office leads regular review and problem-solving (as recommended)",null,null,null,null,null,{"$f":"IFERROR(O70,\"-\")","v":"-"},null,0,0,0,{"$f":"IFERROR(ROUND(AVERAGEIF(L70:N70,\"<>0\",L70:N70),0),\"-\")","v":"-"}]
[null,null,"Full-time AGYW lead within local AIDS Office","Full-time AGYW lead is present within the local AIDS office (as recommended)",null,null,null,null,null,"-",null,0,0,0,"-"]
[]
[null,null,null,null,null,null,null,null,null,null,null,null,{"$f":"COUNTIF(O6:O71,\"-\")","v":18}]
[null,null,null,null,null,null,null,null,null,null,null,null,{"$f":"COUNTIF(O6:O71,\">0\")","v":0}]
[null,null,null,null,null,null,null,null,null,null,null,"Sheet Completion",{"$f":"M74/(M73+M74)","v":0},{"$f":"1-M75","v":1}]
[]
[null,null,null,null,null,null,null,null,null,null,null,null,18]
[null,null,null,null,null,null,null,null,null,null,null,null,{"$f":"M75+'MODERATE Incidence'!M60","v":0}]
[null,null,null,null,null,null,null,null,null,null,null,"Sheet Completion",{"$f":"M78/M77","v":0},{"$f":"1-M79","v":1}]

{"sheet":"Programme Outcomes ","index":9,"n_rows":28,"n_cols":15,"rows_kept":28,"cut":false,"hidden":false,"merged":[[1,2,1,9],[2,3,2,4],[3,2,3,9],[5,2,5,4],[6,2,6,4],[7,2,7,4],[8,2,8,4],[17,2,17,4],[18,2,18,4],[19,2,19,4],[20,2,20,4],[21,2,21,4],[22,2,22,4],[23,2,23,4],[9,2,9,4],[10,2,10,4],[11,2,11,4],[12,2,12,4],[14,2,14,4],[15,2,15,4],[16,2,16,4]]}
[]
[null,null,"Programme Outcomes"]
[null,null,"Element","Criteria",null,"N/A","No target","Target not met or not on track","Target met or on track","Average for element","Comments (if applicable)","Absent","Present","Optimal","Average"]
[null,null,"Outcomes and indicators"]
[null,null,"Key indicators"]
[null,null,"Number of new HIV infections amongst AGYW",null,null,null,null,null,null,{"$f":"IFERROR(O6,\"-\")","v":"-"},null,{"$f":"IF(ISBLANK(G6),0,1)","v":0},{"$f":"IF(ISBLANK(H6),0,3)","v":0},{"$f":"IF(ISBLANK(I6),0,5)","v":0},{"$f":"IFERROR(IF(ISBLANK(G6),ROUND(AVERAGEIF(L6:N6,\"<>0\",L6:N6),0),L6),\"-\")","v":"-"}]
[null,null,"Percentage of (estimated) AGYW living with HIV who know their status",null,null,null,null,null,null,"-",null,0,0,0,"-"]
[null,null,"Percentage of AGYW living with HIV and on ART who are virologically suppressed",null,null,null,null,null,null,"-",null,0,0,0,"-"]
[null,null,"Percentage of male partners living with HIV and on ART who are virologically suppressed",null,null,null,null,null,null,"-",null,0,0,0,"-"]
[null,null,"Percentage of priority districts (administrative areas) with dedicated programs for young women & male partners (full package) ",null,null,null,null,null,null,"-",null,0,0,0,"-"]
[null,null,"Percentage of AGYW at higher risk of HIV reached with HIV prevention programmes in the past 3 months",null,null,null,null,null,null,"-",null,0,0,0,"-"]
[null,null,"Condom use with non-regular partners (young women, 15- 29)",null,null,null,null,null,null,"-",null,0,0,0,"-"]
[null,null,"Percentage of PrEP use amongst AGYW (by risk category)",null,null,null,null,null,null,"-",null,0,0,0,"-"]
[null,null,"Supplementary indicators"]
[null,null,"Percentage of ever-married or partnered women aged 15-49 who experienced physical or sexual violence from a male intimate partner in the past 12 months",null,null,null,null,null,null,{"$f":"IFERROR(O15,\"-\")","v":"-"},null,{"$f":"IF(ISBLANK(G15),0,1)","v":0},{"$f":"IF(ISBLANK(H15),0,3)","v":0},{"$f":"IF(ISBLANK(I15),0,5)","v":0},{"$f":"IFERROR(IF(ISBLANK(G15),ROUND(AVERAGEIF(L15:N15,\"<>0\",L15:N15),0),L15),\"-\")","v":"-"}]
[null,null,"Percentage of sexually active AGYW who had multiple sexual partners ",null,null,null,null,null,null,"-",null,0,0,0,"-"]
[null,null,"Percentage of sexually active men who had multiple sexual partners (men 15-49)",null,null,null,null,null,null,"-",null,0,0,0,"-"]
[null,null,"Knows a formal source for condoms (young women 15-29) ",null,null,null,null,null,null,"-",null,0,0,0,"-"]
[null,null,"Knows a formal source for condoms (young men 15-29) ",null,null,null,null,null,null,"-",null,0,0,0,"-"]
[null,null,"Condom use with non-regular partners (young men, 15-29) ",null,null,null,null,null,null,"-",null,0,0,0,"-"]
[null,null,"Percentage of AGYW known to be on treatment 12 months after initiation of antiretroviral therapy",null,null,null,null,null,null,"-",null,0,0,0,"-"]
[null,null,"Percentage of youth neither in employment nor in education or training (NEET)",null,null,null,null,null,null,"-",null,0,0,0,"-"]
[null,null,"Access to PEP as part of package of risk assessment and support",null,null,null,null,null,null,"-",null,0,0,0,"-"]
[null,null,"Percentage of AGYW who completed secondary school education",null,null,null,null,null,null,"-",null,0,0,0,"-"]
[]
[null,null,null,null,null,null,null,null,null,null,null,null,{"$f":"COUNTIF(O6:O24,\"-\")","v":18}]
[null,null,null,null,null,null,null,null,null,null,null,null,{"$f":"COUNTIF(O6:O24,\">0\")","v":0}]
[null,null,null,null,null,null,null,null,null,null,null,"Sheet Completion",{"$f":"M27/(M26+M27)","v":0},{"$f":"1-M28","v":1}]

{"sheet":"Summary of scores","index":10,"n_rows":104,"n_cols":10,"rows_kept":104,"cut":false,"hidden":false,"merged":[[39,3,46,3],[47,2,78,2],[47,3,60,3],[61,3,78,3],[79,2,97,2],[79,3,86,3],[87,3,96,3],[15,2,46,2],[15,3,18,3],[19,3,20,3],[21,3,24,3],[25,3,27,3],[28,3,35,3],[37,3,38,3],[1,2,1,5],[2,2,14,2],[2,3,7,3],[8,3,9,3],[10,3,14,3]]}
[]
[null,null,"Summary of scores"]
[null,null,"Programme Management","Leadership & coordination","National Strategy and Strategic Plan",{"$f":"'Programme Management'!O6","v":"-"}]
[null,null,null,null,"National and Sub-National plans",{"$f":"'Programme Management'!O19","v":"-"}]
[null,null,null,null,"National Technical working group (TWG) for AGYW/Youth Prevention",{"$f":"'Programme Management'!O20","v":"-"}]
[null,null,null,null,"Accountability",{"$f":"'Programme Management'!O31","v":"-"}]
[null,null,null,null,"Capacity building and technical assistance plan",{"$f":"'Programme Management'!O40","v":"-"}]
[null,null,null,null,"Sustainability plan and transition roadmap",{"$f":"'Programme Management'!O48","v":"-"}]
[null,null,null,"Strategy, Policy & regulation","Policies and Laws",{"$f":"'Programme Management'!O53","v":"-"}]
[null,null,null,null,"Guidelines",{"$f":"'Programme Management'!O65","v":"-"}]
[null,null,null,"Financing","Costing",{"$f":"'Programme Management'!O76","v":"-"}]
[null,null,null,null,"Resource mobilisation and financing",{"$f":"'Programme Management'!O79","v":"-"}]
[null,null,null,null,"Domestic resourcing",{"$f":"'Programme Management'!O80","v":"-"}]
[null,null,null,null,"Social contracting",{"$f":"'Programme Management'!O81","v":"-"}]
[null,null,null,null,"Budget planning",{"$f":"'Programme Management'!O83","v":"-"}]
[null,null,"Programme Implementation","Targeting & planning","Demographic assessment & disaggregation",{"$f":"'Programme Implementation'!O6","v":"-"}]
[null,null,null,null,"Needs assessment",{"$f":"'Programme Implementation'!O12","v":"-"}]
[null,null,null,null,"Characterisation of male partners of AGYW",{"$f":"'Programme Implementation'!O16","v":"-"}]
[null,null,null,null,"Target setting",{"$f":"'Programme Implementation'!O21","v":"-"}]
[null,null,null,"Population size estimation by HIV Incidence Level","Populations size estimate - moderate incidence",{"$f":"'Programme Implementation'!O30","v":"-"}]
[null,null,null,null,"Population size estimate - high incidence",{"$f":"'Programme Implementation'!O34","v":"-"}]
[null,null,null,"Identify the groups \"most vulnerable\" or \"most in need\"","Epidemiological assessment (sero-prevalence survey & determinants of risk)",{"$f":"'Programme Implementation'!O39","v":"-"}]
[null,null,null,null,"Behavioural risk factors",{"$f":"'Programme Implementation'!O49","v":"-"}]
[null,null,null,null,"Biological risk factors",{"$f":"'Programme Implementation'!O60","v":"-"}]
[null,null,null,null,"Structural risk factors",{"$f":"'Programme Implementation'!O65","v":"-"}]
[null,null,null,"Develop a Results Framework (Theory of Change)","Define & prioritise HIV prevention packages per applicable incidence category",{"$f":"'Programme Implementation'!O78","v":"-"}]
[null,null,null,null,"Results Framework/Theory of Change Includes Programmatic Coverage Targets",{"$f":"'Programme Implementation'!O79","v":"-"}]
[null,null,null,null,"Results Framework/Theory of Change  Includes Cross-Cutting activities & Complementary Action",{"$f":"'Programme Implementation'!O84","v":"-"}]
[null,null,null,"Define/Develop Delivery Systems","Develop/ensure health platforms",{"$f":"'Programme Implementation'!O94","v":"-"}]
[null,null,null,null,"Develop/ensure education platforms",{"$f":"'Programme Implementation'!O103","v":"-"}]
[null,null,null,null,"Develop/ensure community platforms (lead non-governmental organisations (NGOs)/civil society organisations (CSOs)) ",{"$f":"'Programme Implementation'!O108","v":"-"}]
[null,null,null,null,"Accessible services",{"$f":"'Programme Implementation'!O118","v":"-"}]
[null,null,null,null,"Youth-friendly/Acceptable services",{"$f":"'Programme Implementation'!O126","v":"-"}]
[null,null,null,null,"Tailored/Appropriate services",{"$f":"'Programme Implementation'!O134","v":"-"}]
[null,null,null,null,"Peer outreach educators (POE), Peer testers and Community Health Workers (CHWs)",{"$f":"'Programme Implementation'!O138","v":"-"}]
[null,null,null,null,"Meaningful engagement of affected communities in leadership & coordination",{"$f":"'Programme Implementation'!O147","v":"-"}]
[null,null,null,"Define Management Mechanism","National & Sub National Management systems",{"$f":"'Programme Implementation'!O152","v":"-"}]
[null,null,null,"Develop Costed Operational Plan","Operational plan",{"$f":"'Programme Implementation'!O167","v":"-"}]
[null,null,null,null,"Available Resources",{"$f":"'Programme Implementation'!O171","v":"-"}]
[null,null,null,"Develop M&E Plan","Routine monitoring",{"$f":"'Programme Implementation'!O179","v":"-"}]
[null,null,null,null,"Referral system tracking",{"$f":"'Programme Implementation'!O189","v":"-"}]
[null,null,null,null,"Quality assessment",{"$f":"'Programme Implementation'!O196","v":"-"}]
[null,null,null,null,"Surveillance ",{"$f":"'Programme Implementation'!O202","v":"-"}]
[null,null,null,null,"Data flow",{"$f":"'Programme Implementation'!O207","v":"-"}]
[null,null,null,null,"Data for decision making",{"$f":"'Programme Implementation'!O213","v":"-"}]
[null,null,null,null,"The use of Unique Identifier Code for program monitoring",{"$f":"'Programme Implementation'!O222","v":"-"}]
[null,null,null,null,"Budget monitoring",{"$f":"'Programme Implementation'!O227","v":"-"}]
[null,null,"AGYW Prevention Package","National HIV Prevention Programme enablers in ALL locations","Access to primary and secondary education ",{"$f":"'ALL - Regardless of Incidence'!O6","v":"-"}]
[null,null,null,null,"Universal introduction of comprehensive sexuality education and school health programmes ",{"$f":"'ALL - Regardless of Incidence'!O15","v":"-"}]
[null,null,null,null,"Social support and economic empowerment of vulnerable adolescents",{"$f":"'ALL - Regardless of Incidence'!O32","v":"-"}]
[null,null,null,null,"Access to integrated sexual and reproductive health",{"$f":"'ALL - Regardless of Incidence'!O38","v":"-"}]
[null,null,null,null,"Access to SHR and rights including legal and policy support ",{"$f":"'ALL - Regardless of Incidence'!O51","v":"-"}]
[null,null,null,null,"Youth-friendly health systems ",{"$f":"'ALL - Regardless of Incidence'!O69","v":"-"}]
[null,null,null,null,"HIV testing and treatment services",{"$f":"'ALL - Regardless of Incidence'!O76","v":"-"}]
[null,null,null,null,"PEP",{"$f":"'ALL - Regardless of Incidence'!O88","v":"-"}]
[null,null,null,null,"Prevention of vertical transmission of HIV as part of maternal health ",{"$f":"'ALL - Regardless of Incidence'!O95","v":"-"}]
[null,null,null,null,"Action to address HIV related rights, stigma, and discrimination",{"$f":"'ALL - Regardless of Incidence'!O101","v":"-"}]
[null,null,null,null,"Male and female condoms and lubricants ",{"$f":"'ALL - Regardless of Incidence'!O108","v":"-"}]
[null,null,null,null,"Voluntary medical male circumcisions for men in relevant priority countries",{"$f":"'ALL - Regardless of Incidence'!O117","v":"-"}]
[null,null,null,null,"Basic national HIV information, risk reduction communications ",{"$f":"'ALL - Regardless of Incidence'!O120","v":"-"}]
[null,null,null,null,"Comprehensive HIV prevention packages for key and vulnerable youth",{"$f":"'ALL - Regardless of Incidence'!O133","v":"-"}]
[null,null,null,"HIV prevention packages for AGYW in MODERATE or HIGH incidence locations","HIV/STI risk assessment profile",{"$f":"IF('MODERATE Incidence'!O6<>\"-\",'MODERATE Incidence'!O6,'HIGH Incidence'!O6)","v":"-"}]
[null,null,null,null,"HIV risk reduction counselling and testing ",{"$f":"IF('MODERATE Incidence'!O10<>\"-\",'MODERATE Incidence'!O10,'HIGH Incidence'!O10)","v":"-"}]
[null,null,null,null,"Active provider-initiated condom and lubricant distribution and promotion",{"$f":"IF('MODERATE Incidence'!O14<>\"-\",'MODERATE Incidence'!O14,'HIGH Incidence'!O14)","v":"-"}]
[null,null,null,null,"STI diagnosis (including as indicator for HIV risk) and treatment ",{"$f":"IF('MODERATE Incidence'!O18<>\"-\",'MODERATE Incidence'!O18,'HIGH Incidence'!O19)","v":"-"}]
[null,null,null,null,"HIV & STI service integration in family planning",{"$f":"IF('MODERATE Incidence'!O21<>\"-\",'MODERATE Incidence'!O21,'HIGH Incidence'!O24)","v":"-"}]
[null,null,null,null,"Male partner testing (invitation letter + self test) with antiretroviral treatment referral",{"$f":"IF('MODERATE Incidence'!O25<>\"-\",'MODERATE Incidence'!O25,'HIGH Incidence'!O29)","v":"-"}]
[null,null,null,null,"PrEP services",{"$f":"IF('MODERATE Incidence'!O29<>\"-\",'MODERATE Incidence'!O29,'HIGH Incidence'!O34)","v":"-"}]
[null,null,null,null,"Dedicated school-based HIV prevention campaigns (knowledge, risk perception, methods, skills, GBV) linked to services",{"$f":"IF('MODERATE Incidence'!O33<>\"-\",'MODERATE Incidence'!O33,'HIGH Incidence'!O39)","v":"-"}]
[null,null,null,null,"Accelerated introduction of comprehensive sexuality education",{"$f":"IF('MODERATE Incidence'!O36<>\"-\",'MODERATE Incidence'!O36,'HIGH Incidence'!O42)","v":"-"}]
[null,null,null,null,"Community mobilization around basic HIV prevention knowledge, risk perception and related social norms",{"$f":"IF('MODERATE Incidence'!O38<>\"-\",'MODERATE Incidence'!O38,'HIGH Incidence'!O45)","v":"-"}]
[null,null,null,null,"Community-based demand generation and outreach HIV prevention services (incl. condoms, self-testing, referrals)",{"$f":"IF('MODERATE Incidence'!O41<>\"-\",'MODERATE Incidence'!O41,'HIGH Incidence'!O48)","v":"-"}]
[null,null,null,null,"Active PrEP demand generation",{"$f":"IF('MODERATE Incidence'!O44<>\"-\",'MODERATE Incidence'!O44,'HIGH Incidence'!O51)","v":"-"}]
[null,null,null,null,"Structured interpersonal communication outreach (e.g. SASA! etc.)",{"$f":"IF('MODERATE Incidence'!O47<>\"-\",'MODERATE Incidence'!O47,'HIGH Incidence'!O55)","v":"-"}]
[null,null,null,null,"Cash transfers, incentives, economic empowerment",{"$f":"IF('MODERATE Incidence'!O50<>\"-\",'MODERATE Incidence'!O50,'HIGH Incidence'!O58)","v":"-"}]
[null,null,null,null,"Social asset-building, safe spaces, parenting programmes, mentoring",{"$f":"IF('MODERATE Incidence'!O52<>\"-\",'MODERATE Incidence'!O52,'HIGH Incidence'!O62)","v":"-"}]
[null,null,null,null,"Keep girls in-school / education assistance",{"$f":"IF('MODERATE Incidence'!O54<>\"-\",'MODERATE Incidence'!O54,'HIGH Incidence'!O66)","v":"-"}]
[null,null,null,null,"Local AIDS Office leads regular review & problem-solving",{"$f":"IF('MODERATE Incidence'!O56<>\"-\",'MODERATE Incidence'!O56,'HIGH Incidence'!O70)","v":"-"}]
[null,null,null,null,"Full-time AGYW lead within local AIDS Office",{"$f":"IF('MODERATE Incidence'!O57<>\"-\",'MODERATE Incidence'!O57,'HIGH Incidence'!O71)","v":"-"}]
[null,null,"Programme Outcomes","Key indicators","Number of new HIV infections amongst AGYW",{"$f":"'Programme Outcomes '!O6","v":"-"}]
[null,null,null,null,"Percentage of (estimated) AGYW living with HIV who know their status",{"$f":"'Programme Outcomes '!O7","v":"-"}]
[null,null,null,null,"Percentage of AGYW living with HIV and on ART who are virologically suppressed",{"$f":"'Programme Outcomes '!O8","v":"-"}]
[null,null,null,null,"Percentage of male partners living with HIV and on ART who are virologically suppressed",{"$f":"'Programme Outcomes '!O9","v":"-"}]
[null,null,null,null,"Percentage of priority districts (administrative areas) with dedicated programs for young women & male partners (full package) ",{"$f":"'Programme Outcomes '!O10","v":"-"}]
[null,null,null,null,"Percentage of AGYW at higher risk of HIV reached with HIV prevention programmes in the past 3 months",{"$f":"'Programme Outcomes '!O11","v":"-"}]
[null,null,null,null,"Condom use with non-regular partners (young women, 15- 29)",{"$f":"'Programme Outcomes '!O12","v":"-"}]
[null,null,null,null,"Percentage of PrEP use amongst AGYW (by risk category)",{"$f":"'Programme Outcomes '!O13","v":"-"}]
[null,null,null,"Supplementary indicators","Percentage of ever-married or partnered women aged 15-49 who experienced physical or sexual violence from a male intimate partner in the past 12 months",{"$f":"'Programme Outcomes '!O15","v":"-"}]
[null,null,null,null,"Percentage of sexually active AGYW who had multiple sexual partners ",{"$f":"'Programme Outcomes '!O16","v":"-"}]
[null,null,null,null,"Percentage of sexually active men who had multiple sexual partners (men 15-49)",{"$f":"'Programme Outcomes '!O17","v":"-"}]
[null,null,null,null,"Knows a formal source for condoms (young women 15-29) ",{"$f":"'Programme Outcomes '!O18","v":"-"}]
[null,null,null,null,"Knows a formal source for condoms (young men 15-29) ",{"$f":"'Programme Outcomes '!O19","v":"-"}]
[null,null,null,null,"Condom use with non-regular partners (young men, 15-29) ",{"$f":"'Programme Outcomes '!O20","v":"-"}]
[null,null,null,null,"Percentage of AGYW known to be on treatment 12 months after initiation of antiretroviral therapy",{"$f":"'Programme Outcomes '!O21","v":"-"}]
[null,null,null,null,"Percentage of youth neither in employment nor in education or training (NEET)",{"$f":"'Programme Outcomes '!O22","v":"-"}]
[null,null,null,null,"Access to PEP as part of package of risk assessment and support",{"$f":"'Programme Outcomes '!O23","v":"-"}]
[null,null,null,null,"Percentage of AGYW who completed secondary school education",{"$f":"'Programme Outcomes '!O24","v":"-"}]
[null,null,null,"Sustainability indicators",null,{"$f":"IFERROR(ROUND(AVERAGE('Programme Management'!P6:P86,'Programme Implementation'!P190),0),\"-\")","v":"-"}]
[null,null,null,"COVID-19 (and other pandemics) indicators",null,{"$f":"IF((SUM('Programme Management'!L74:N74)+SUM('ALL - Regardless of Incidence'!L140:N140)+SUM('ALL - Regardless of Incidence'!L141:N141))/3=0,\"-\", ROUND((SUM('Programme Management'!L74:N74)+SUM('ALL - Regardless of Incidence'!L140:N140)+SUM('ALL - Regardless of Incidence'!L141:N141))/3,0))","v":"-"}]
[]
[]
[null,null,null,null,null,null,null,null,{"$f":"COUNTIF(F3:F99,\"-\")","v":97}]
[null,null,null,null,null,null,null,null,{"$f":"COUNTIF(F3:F99,\">0\")","v":0}]
[null,null,null,null,null,null,null,"PSAT Completion",{"$f":"I103/(I102+I103)","v":0},{"$f":"1-I104","v":1}]

{"sheet":"Next steps ","index":11,"n_rows":55,"n_cols":8,"rows_kept":55,"cut":false,"hidden":false,"merged":[[1,2,1,8],[11,2,11,3]]}
[]
[null,null,"Next Steps"]
[]
[null,null,null,null,null,"Element that needs to be addressed","Reason for low performance","Proposed actions (e.g. support required or corrective actions). Please ensure that proposed actions are disaggregated, when appropriate, per age category: 15-19; 20-24 and 25-29"]
[null,null,null,null,1,{"$f":"IFERROR(INDEX('Summary of scores'!$E$1:$E$99,SMALL(IF('Summary of scores'!$F$1:$F$99<=$C$12,ROW('Summary of scores'!$F$1:$F$99)),ROW(3:3))),\"\")","v":""}]
[null,null,null,null,2,{"$f":"IFERROR(INDEX('Summary of scores'!$E$1:$E$99,SMALL(IF('Summary of scores'!$F$1:$F$99<=$C$12,ROW('Summary of scores'!$F$1:$F$99)),ROW(4:4))),\"\")","v":""}]
[null,null,null,null,3,{"$f":"IFERROR(INDEX('Summary of scores'!$E$1:$E$99,SMALL(IF('Summary of scores'!$F$1:$F$99<=$C$12,ROW('Summary of scores'!$F$1:$F$99)),ROW(5:5))),\"\")","v":""}]
[null,null,null,null,4,{"$f":"IFERROR(INDEX('Summary of scores'!$E$1:$E$99,SMALL(IF('Summary of scores'!$F$1:$F$99<=$C$12,ROW('Summary of scores'!$F$1:$F$99)),ROW(6:6))),\"\")","v":""}]
[null,null,null,null,5,{"$f":"IFERROR(INDEX('Summary of scores'!$E$1:$E$99,SMALL(IF('Summary of scores'!$F$1:$F$99<=$C$12,ROW('Summary of scores'!$F$1:$F$99)),ROW(7:7))),\"\")","v":""}]
[null,null,null,null,6,{"$f":"IFERROR(INDEX('Summary of scores'!$E$1:$E$99,SMALL(IF('Summary of scores'!$F$1:$F$99<=$C$12,ROW('Summary of scores'!$F$1:$F$99)),ROW(8:8))),\"\")","v":""}]
[null,null,null,null,7,{"$f":"IFERROR(INDEX('Summary of scores'!$E$1:$E$99,SMALL(IF('Summary of scores'!$F$1:$F$99<=$C$12,ROW('Summary of scores'!$F$1:$F$99)),ROW(9:9))),\"\")","v":""}]
[null,null,1,null,8,{"$f":"IFERROR(INDEX('Summary of scores'!$E$1:$E$99,SMALL(IF('Summary of scores'!$F$1:$F$99<=$C$12,ROW('Summary of scores'!$F$1:$F$99)),ROW(10:10))),\"\")","v":""}]
[null,null,null,null,9,{"$f":"IFERROR(INDEX('Summary of scores'!$E$1:$E$99,SMALL(IF('Summary of scores'!$F$1:$F$99<=$C$12,ROW('Summary of scores'!$F$1:$F$99)),ROW(11:11))),\"\")","v":""}]
[null,null,null,null,10,{"$f":"IFERROR(INDEX('Summary of scores'!$E$1:$E$99,SMALL(IF('Summary of scores'!$F$1:$F$99<=$C$12,ROW('Summary of scores'!$F$1:$F$99)),ROW(12:12))),\"\")","v":""}]
[null,null,null,null,11,{"$f":"IFERROR(INDEX('Summary of scores'!$E$1:$E$99,SMALL(IF('Summary of scores'!$F$1:$F$99<=$C$12,ROW('Summary of scores'!$F$1:$F$99)),ROW(13:13))),\"\")","v":""}]
[null,null,null,null,12,{"$f":"IFERROR(INDEX('Summary of scores'!$E$1:$E$99,SMALL(IF('Summary of scores'!$F$1:$F$99<=$C$12,ROW('Summary of scores'!$F$1:$F$99)),ROW(14:14))),\"\")","v":""}]
[null,null,null,null,13,{"$f":"IFERROR(INDEX('Summary of scores'!$E$1:$E$99,SMALL(IF('Summary of scores'!$F$1:$F$99<=$C$12,ROW('Summary of scores'!$F$1:$F$99)),ROW(15:15))),\"\")","v":""}]
[null,null,null,null,14,{"$f":"IFERROR(INDEX('Summary of scores'!$E$1:$E$99,SMALL(IF('Summary of scores'!$F$1:$F$99<=$C$12,ROW('Summary of scores'!$F$1:$F$99)),ROW(16:16))),\"\")","v":""}]
[null,null,null,null,15,{"$f":"IFERROR(INDEX('Summary of scores'!$E$1:$E$99,SMALL(IF('Summary of scores'!$F$1:$F$99<=$C$12,ROW('Summary of scores'!$F$1:$F$99)),ROW(17:17))),\"\")","v":""}]
[null,null,null,null,16,{"$f":"IFERROR(INDEX('Summary of scores'!$E$1:$E$99,SMALL(IF('Summary of scores'!$F$1:$F$99<=$C$12,ROW('Summary of scores'!$F$1:$F$99)),ROW(18:18))),\"\")","v":""}]
[null,null,null,null,17,{"$f":"IFERROR(INDEX('Summary of scores'!$E$1:$E$99,SMALL(IF('Summary of scores'!$F$1:$F$99<=$C$12,ROW('Summary of scores'!$F$1:$F$99)),ROW(19:19))),\"\")","v":""}]
[null,null,null,null,18,{"$f":"IFERROR(INDEX('Summary of scores'!$E$1:$E$99,SMALL(IF('Summary of scores'!$F$1:$F$99<=$C$12,ROW('Summary of scores'!$F$1:$F$99)),ROW(20:20))),\"\")","v":""}]
[null,null,null,null,19,{"$f":"IFERROR(INDEX('Summary of scores'!$E$1:$E$99,SMALL(IF('Summary of scores'!$F$1:$F$99<=$C$12,ROW('Summary of scores'!$F$1:$F$99)),ROW(21:21))),\"\")","v":""}]
[null,null,null,null,20,{"$f":"IFERROR(INDEX('Summary of scores'!$E$1:$E$99,SMALL(IF('Summary of scores'!$F$1:$F$99<=$C$12,ROW('Summary of scores'!$F$1:$F$99)),ROW(22:22))),\"\")","v":""}]
[null,null,null,null,21,{"$f":"IFERROR(INDEX('Summary of scores'!$E$1:$E$99,SMALL(IF('Summary of scores'!$F$1:$F$99<=$C$12,ROW('Summary of scores'!$F$1:$F$99)),ROW(23:23))),\"\")","v":""}]
[null,null,null,null,22,{"$f":"IFERROR(INDEX('Summary of scores'!$E$1:$E$99,SMALL(IF('Summary of scores'!$F$1:$F$99<=$C$12,ROW('Summary of scores'!$F$1:$F$99)),ROW(24:24))),\"\")","v":""}]
[null,null,null,null,23,{"$f":"IFERROR(INDEX('Summary of scores'!$E$1:$E$99,SMALL(IF('Summary of scores'!$F$1:$F$99<=$C$12,ROW('Summary of scores'!$F$1:$F$99)),ROW(25:25))),\"\")","v":""}]
[null,null,null,null,24,{"$f":"IFERROR(INDEX('Summary of scores'!$E$1:$E$99,SMALL(IF('Summary of scores'!$F$1:$F$99<=$C$12,ROW('Summary of scores'!$F$1:$F$99)),ROW(26:26))),\"\")","v":""}]
[null,null,null,null,25,{"$f":"IFERROR(INDEX('Summary of scores'!$E$1:$E$99,SMALL(IF('Summary of scores'!$F$1:$F$99<=$C$12,ROW('Summary of scores'!$F$1:$F$99)),ROW(27:27))),\"\")","v":""}]
[null,null,null,null,26,{"$f":"IFERROR(INDEX('Summary of scores'!$E$1:$E$99,SMALL(IF('Summary of scores'!$F$1:$F$99<=$C$12,ROW('Summary of scores'!$F$1:$F$99)),ROW(28:28))),\"\")","v":""}]
[null,null,null,null,27,{"$f":"IFERROR(INDEX('Summary of scores'!$E$1:$E$99,SMALL(IF('Summary of scores'!$F$1:$F$99<=$C$12,ROW('Summary of scores'!$F$1:$F$99)),ROW(29:29))),\"\")","v":""}]
[null,null,null,null,28,{"$f":"IFERROR(INDEX('Summary of scores'!$E$1:$E$99,SMALL(IF('Summary of scores'!$F$1:$F$99<=$C$12,ROW('Summary of scores'!$F$1:$F$99)),ROW(30:30))),\"\")","v":""}]
[null,null,null,null,29,{"$f":"IFERROR(INDEX('Summary of scores'!$E$1:$E$99,SMALL(IF('Summary of scores'!$F$1:$F$99<=$C$12,ROW('Summary of scores'!$F$1:$F$99)),ROW(31:31))),\"\")","v":""}]
[null,null,null,null,30,{"$f":"IFERROR(INDEX('Summary of scores'!$E$1:$E$99,SMALL(IF('Summary of scores'!$F$1:$F$99<=$C$12,ROW('Summary of scores'!$F$1:$F$99)),ROW(32:32))),\"\")","v":""}]
[null,null,null,null,31,{"$f":"IFERROR(INDEX('Summary of scores'!$E$1:$E$99,SMALL(IF('Summary of scores'!$F$1:$F$99<=$C$12,ROW('Summary of scores'!$F$1:$F$99)),ROW(33:33))),\"\")","v":""}]
[null,null,null,null,32,{"$f":"IFERROR(INDEX('Summary of scores'!$E$1:$E$99,SMALL(IF('Summary of scores'!$F$1:$F$99<=$C$12,ROW('Summary of scores'!$F$1:$F$99)),ROW(34:34))),\"\")","v":""}]
[null,null,null,null,33,{"$f":"IFERROR(INDEX('Summary of scores'!$E$1:$E$99,SMALL(IF('Summary of scores'!$F$1:$F$99<=$C$12,ROW('Summary of scores'!$F$1:$F$99)),ROW(35:35))),\"\")","v":""}]
[null,null,null,null,34,{"$f":"IFERROR(INDEX('Summary of scores'!$E$1:$E$99,SMALL(IF('Summary of scores'!$F$1:$F$99<=$C$12,ROW('Summary of scores'!$F$1:$F$99)),ROW(36:36))),\"\")","v":""}]
[null,null,null,null,35,{"$f":"IFERROR(INDEX('Summary of scores'!$E$1:$E$99,SMALL(IF('Summary of scores'!$F$1:$F$99<=$C$12,ROW('Summary of scores'!$F$1:$F$99)),ROW(37:37))),\"\")","v":""}]
[null,null,null,null,36,{"$f":"IFERROR(INDEX('Summary of scores'!$E$1:$E$99,SMALL(IF('Summary of scores'!$F$1:$F$99<=$C$12,ROW('Summary of scores'!$F$1:$F$99)),ROW(38:38))),\"\")","v":""}]
[null,null,null,null,37,{"$f":"IFERROR(INDEX('Summary of scores'!$E$1:$E$99,SMALL(IF('Summary of scores'!$F$1:$F$99<=$C$12,ROW('Summary of scores'!$F$1:$F$99)),ROW(39:39))),\"\")","v":""}]
[null,null,null,null,38,{"$f":"IFERROR(INDEX('Summary of scores'!$E$1:$E$99,SMALL(IF('Summary of scores'!$F$1:$F$99<=$C$12,ROW('Summary of scores'!$F$1:$F$99)),ROW(40:40))),\"\")","v":""}]
[null,null,null,null,39,{"$f":"IFERROR(INDEX('Summary of scores'!$E$1:$E$99,SMALL(IF('Summary of scores'!$F$1:$F$99<=$C$12,ROW('Summary of scores'!$F$1:$F$99)),ROW(41:41))),\"\")","v":""}]
[null,null,null,null,40,{"$f":"IFERROR(INDEX('Summary of scores'!$E$1:$E$99,SMALL(IF('Summary of scores'!$F$1:$F$99<=$C$12,ROW('Summary of scores'!$F$1:$F$99)),ROW(42:42))),\"\")","v":""}]
[null,null,null,null,41,{"$f":"IFERROR(INDEX('Summary of scores'!$E$1:$E$99,SMALL(IF('Summary of scores'!$F$1:$F$99<=$C$12,ROW('Summary of scores'!$F$1:$F$99)),ROW(43:43))),\"\")","v":""}]
[null,null,null,null,42,{"$f":"IFERROR(INDEX('Summary of scores'!$E$1:$E$99,SMALL(IF('Summary of scores'!$F$1:$F$99<=$C$12,ROW('Summary of scores'!$F$1:$F$99)),ROW(44:44))),\"\")","v":""}]
[null,null,null,null,43,{"$f":"IFERROR(INDEX('Summary of scores'!$E$1:$E$99,SMALL(IF('Summary of scores'!$F$1:$F$99<=$C$12,ROW('Summary of scores'!$F$1:$F$99)),ROW(45:45))),\"\")","v":""}]
[null,null,null,null,44,{"$f":"IFERROR(INDEX('Summary of scores'!$E$1:$E$99,SMALL(IF('Summary of scores'!$F$1:$F$99<=$C$12,ROW('Summary of scores'!$F$1:$F$99)),ROW(46:46))),\"\")","v":""}]
[null,null,null,null,45,{"$f":"IFERROR(INDEX('Summary of scores'!$E$1:$E$99,SMALL(IF('Summary of scores'!$F$1:$F$99<=$C$12,ROW('Summary of scores'!$F$1:$F$99)),ROW(47:47))),\"\")","v":""}]
[null,null,null,null,46,{"$f":"IFERROR(INDEX('Summary of scores'!$E$1:$E$99,SMALL(IF('Summary of scores'!$F$1:$F$99<=$C$12,ROW('Summary of scores'!$F$1:$F$99)),ROW(48:48))),\"\")","v":""}]
[null,null,null,null,47,{"$f":"IFERROR(INDEX('Summary of scores'!$E$1:$E$99,SMALL(IF('Summary of scores'!$F$1:$F$99<=$C$12,ROW('Summary of scores'!$F$1:$F$99)),ROW(49:49))),\"\")","v":""}]
[null,null,null,null,48,{"$f":"IFERROR(INDEX('Summary of scores'!$E$1:$E$99,SMALL(IF('Summary of scores'!$F$1:$F$99<=$C$12,ROW('Summary of scores'!$F$1:$F$99)),ROW(50:50))),\"\")","v":""}]
[null,null,null,null,49,{"$f":"IFERROR(INDEX('Summary of scores'!$E$1:$E$99,SMALL(IF('Summary of scores'!$F$1:$F$99<=$C$12,ROW('Summary of scores'!$F$1:$F$99)),ROW(51:51))),\"\")","v":""}]
[null,null,null,null,50,{"$f":"IFERROR(INDEX('Summary of scores'!$E$1:$E$99,SMALL(IF('Summary of scores'!$F$1:$F$99<=$C$12,ROW('Summary of scores'!$F$1:$F$99)),ROW(52:52))),\"\")","v":""}]
[null,null,null,null,null,{"$f":"IFERROR(INDEX('Summary of scores'!$E$1:$E$99,SMALL(IF('Summary of scores'!$F$1:$F$99<=$C$12,ROW('Summary of scores'!$F$1:$F$99)),ROW(53:53))),\"\")","v":""}]

{"sheet":"Bibliography","index":12,"n_rows":53,"n_cols":4,"rows_kept":53,"cut":false,"hidden":false,"merged":[[1,2,1,3]]}
[]
[null,null,"Bibliography"]
[null,null,1,"Global Fund. (2018). Measurement framework for adolescent girls and young women"]
[null,null,2,"Global HIV Prevention Coalition (2020). Decision-making Aide for Investments into HIV Prevention Programmes among Adolescent Girls and Young Women "]
[null,null,3,"International AIDS Society. (2018). Differentiated service delivery for HIV: A decision framework for HIV testing services"]
[null,null,4,"International AIDS Society. (2018). Differentiated service delivery: A decision framework for differentiated antiretroviral therapy for key populations"]
[null,null,5,"Joint United Nations Programme on HIV/AIDS (UNAIDS). (2016). HIV prevention among adolescent girls and young women. Geneva, Switzerland"]
[null,null,6,"Joint United Nations Programme on HIV/AIDS. (2008). A framework for monitoring and evaluating HIV prevention programmes for most-at-risk populations. Geneva: UNAIDS"]
[null,null,7,"Joint United Nations Programme on HIV/AIDS. (2012). Key programmes to reduce stigma and discrimination and increase access to justice in national HIV responses. Guidance Note"]
[null,null,8,"Joint United Nations Programme on HIV/AIDS. (2016). HIV prevention among adolescent girls and young women: Putting HIV prevention among adolescent girls and young women on the fast-track and engaging men and boys"]
[null,null,9,"Joint United Nations Programme on HIV/AIDS. (2017). HIV prevention 2020 road map—accelerating HIV prevention to reduce new infections by 75%. Geneva: UNAIDS"]
[null,null,10,"Joint United Nations Programme on HIV/AIDS. (2018). Global AIDS Monitoring 2019: Indicators for Monitoring the 2016 Political Declaration on Ending AIDS. Geneva: UNAIDS"]
[null,null,11,"Joint United Nations Programme on HIV/AIDS. (2018). Implementation of the HIV Prevention 2020 Road Map - First progress report, March 2018. Geneva: UNAIDS"]
[null,null,12,"Joint United Nations Programme on HIV/AIDS. (2018.) Miles To Go: Closing the gaps, breaking barriers, righting injustices"]
[null,null,13,"Joint United Nations Programme on HIV/AIDS. (2019). Gender Assessment Tool — Towards a gender-transformative HIV response"]
[null,null,14,"Joint United Nations Programme on HIV/AIDS. (2019) Communities at the centre: Defending rights breaking barriers, reaching people with HIV services"]
[null,null,15,"Joint United Nations Programme on HIV/AIDS. (2020). HIV Prevention Scorecard for AGYW. Geneva: UNAIDS"]
[null,null,16,"Joint United Nations Programme on HIV/AIDS. (2020). HIV Prevention Scorecard for Key Populations. Geneva: UNAIDS"]
[null,null,17,"Joint United Nations Programme on HIV/AIDS. (2020) Fourth progress report of the GPC"]
[null,null,18,"Joint United Nations Programme on HIV/AIDS. (2020). Maintaining and prioritizing HIV prevention services in the time of COVID-19"]
[null,null,19,"Joint United Nations Programme on HIV/AIDS. (2020). Condoms and lubricants in the time of COVID-19. Sustaining supplies and people-centred approaches to meet the need in low- and middle-income countries"]
[null,null,20,"Joint United Nations Programme on HIV/AIDS. (2020). UNAIDS highlights six critical actions to put gender equality at the centre of COVID-19 responses"]
[null,null,21,"Joint United Nations Programme on HIV/AIDS. (2020). Strategic Considerations for Mitigating the Impact of COVID-19 on Key-Population-Focused HIV Programs"]
[null,null,22,"Joint United Nations Programme on HIV/AIDS. (2020). Preventing HIV and other STIs among women and girls using contraceptive services in contexts with high HIV incidence"]
[null,null,23,"Joint United Nations Programme on HIV/AIDS. (2021). Going Online: A Budgeting and Programming Aid for Virtual HIV Interventions "]
[null,null,24,"Kageni, A., Mwangi, L., Mugyenyi, C., & Macintyre, K. (2015). Representation and participation of key populations on country coordinating mechanisms (CCMs) in sex countries in Southern Africa. Final report"]
[null,null,25,"LINKAGES. (2015). HIV cascade framework for Key Populations"]
[null,null,26,"LINKAGES. (2016). Annex 2: Acceleration Technical Assistance Checklist of Accelerating the Implementation and Scale-up of Comprehensive Programs for HIV Prevention, Diagnosis, Treatment and Care for Key Populations"]
[null,null,27,"LINKAGES. (2017). Key Population Programme Implementation Guide"]
[null,null,28,"NASCOP. (2014). Ministry of Health National Guidelines of HIV and STI Programming with Key Populations. Kenya"]
[null,null,29,"SANAC. (2016). South African National Strategic Plan 2017-2020"]
[null,null,30,"Saul. (2018). The DREAMS core package of interventions: A comprehensive approach to preventing HIV among adolescent girls and young women"]
[null,null,31,"The Global Fund. (2018). Measurement framework for adolescent girls and young women"]
[null,null,32,"The Global Fund. (2019). Adolescent Girls and Young Women in high-HIV burden settings: Technical Brief"]
[null,null,33,"United Nations Office on Drugs and Crime, International Network of People Who Use Drugs, Joint United Nations Programme on HIV/AIDS, United Nations Development Programme, United Nations Population Fund, World Health Organization, United States Agency for International Development. (2017). Implementing comprehensive HIV and HCV programmes with people who inject drugs: practical guidance for collaborative interventions. Vienna: United Nations Office on Drugs and Crime"]
[null,null,34,"United Nations Population Fund. (2019). Rights and choices for all adolescents and youth: a UNFPA global strategy"]
[null,null,35,"World Health Organization. (2007). Guide to starting and managing needle and syringe programmes"]
[null,null,36,"World Health Organization. (2009). Toolkit for Monitoring and Evaluation of interventions for sex workers"]
[null,null,37,"World Health Organization. (2010). Delivering HIV test results and messages for re-testing and counselling in adults"]
[null,null,38,"World Health Organization. (2011). Guidelines on surveillance among populations most at risk for HIV"]
[null,null,39,"World Health Organization. (2011). Preventing HIV in Sex Work in Sub-Saharan Africa"]
[null,null,40,"World Health Organization. (2012). Guidance on Pre-Exposure Prophylaxis (PrEP) for serodiscordant couples, men and transgender women who have sex with men at high risk of HIV"]
[null,null,41,"World Health Organization. (2012). Prevention and treatment of HIV and other sexually transmitted infections for sex workers in low-and middle-income countries: recommendations for a public health approach. World Health Organization"]
[null,null,42,"World Health Organization. (2012). Responding to intimate partner violence and sexual violence against women"]
[null,null,43,"World Health Organization. (2012). Service delivery approaches to HIV testing and counselling (HTC): A strategic HTC programme framework"]
[null,null,44,"World Health Organization. (2015). Tool to set and monitor targets for HIV prevention, diagnosis, treatment and care for key populations: supplement to the 2014 consolidated guidelines for HIV prevention, diagnosis, treatment and care for key populations. World Health Organization"]
[null,null,45,"World Health Organization. (2016). Consolidated guideline on HIV prevention diagnosis, treatment and care for Key Populations - 2016 update"]
[null,null,46,"World Health Organization. (2016). Global standards for quality health-care services for adolescents - a guide to implement a standards-driven approach to improve the quality of health-care services for adolescents"]
[null,null,47,"World Health Organization. (2017). Consolidated guidelines on person-centred HIV patient monitoring and case surveillance"]
[null,null,48,"World Health Organization (2017). Global Accelerated Action for the Health of Adolescents (AA-HA!): guidance to support country implementation"]
[null,null,49,"World Health Organization. (2018). mhGAP operations manual"]
[null,null,50,"World Health Organisation and UNICEF (2019): Adolescent-friendly health services for adolescents living with HIV: From Theory to Practice"]
[null,null,51,"YIELD. (2019). Young People Advancing Sexual and Reproductive Health: Toward a New Normal. Report of working group, CCM assessment"]

{"sheet":"Acronyms","index":13,"n_rows":36,"n_cols":4,"rows_kept":36,"cut":false,"hidden":false,"merged":[[1,2,1,3]]}
[]
[null,null,"Acronyms"]
[null,null,"Adolescent girls and young women ","AGYW"]
[null,null,"Antenatal care","ANC"]
[null,null,"Antiretroviral therapy","ART"]
[null,null,"Comprehensive sexuality education","CSE"]
[null,null,"Civil society organisations ","CSO"]
[null,null,"Community-based organisation","CBO"]
[null,null,"District health information software","DHIS"]
[null,null,"Family planning","FP"]
[null,null,"Gender based violence","GBV"]
[null,null,"HIV testing services","HTS"]
[null,null,"Joint United Nations Programme on HIV/AIDS ","UNAIDS"]
[null,null,"Monitoring and evaluation","M&E"]
[null,null,"Not in education, employment or training","NEET"]
[null,null,"Non-governmental organisation","NGO"]
[null,null,"Open access","OA"]
[null,null,"Peer outreach educators","POE"]
[null,null,"Population size estimate","PSE"]
[null,null,"Pre-exposure prophylaxis","PrEP"]
[null,null,"Prevention of mother-to-child transmission","PMTCT"]
[null,null,"Prevention Self-Assessment Tool","PSAT"]
[null,null,"People living with HIV","PLHIV"]
[null,null,"Post exposure prophylaxis","PEP"]
[null,null,"Sex Worker","SW"]
[null,null,"Sexual reproductive health ","SRH"]
[null,null,"Social behaviour change communication","SBCC"]
[null,null,"Sexually transmitted infection","STI"]
[null,null,"Standard Operating Procedure ","SOP"]
[null,null,"Technical assistance","TA"]
[null,null,"Technical working group ","TWG"]
[null,null,"Terms of reference","TOR"]
[null,null,"Theory of change","TOC"]
[null,null,"Tuberculosis","TB"]
[null,null,"Unique identifier code","UIC"]
[null,null,"Voluntary medical male circumcision","VMMC"]